Body,Body name,Date,Transaction number,Amount,Non recoverable VAT included in amount,Supplier name,Supplier ID,Expense area,Fund type,Expense type,Category description
http://thanet.gov.uk/supplierspend,Thanet District Council,03/11/2015,395912,1540,,Amenity Horticultural Serv Ltd,AME001,Operational Services,Revenue,"Equip, Furniture And Materials",Horticultural
http://thanet.gov.uk/supplierspend,Thanet District Council,03/11/2015,395753,609,,Ass Of Electoral Administrators,AEA001,Corporate Governance,Revenue,Advertising Expenses,Human Resources
http://thanet.gov.uk/supplierspend,Thanet District Council,03/11/2015,395341,1750,,Blue Sail Consulting Ltd,BLU011,Community Services,Revenue,Services,Consultancy
http://thanet.gov.uk/supplierspend,Thanet District Council,03/11/2015,395913,500,,Blue Sail Consulting Ltd,BLU011,Community Services,Revenue,Services,Consultancy
http://thanet.gov.uk/supplierspend,Thanet District Council,03/11/2015,394349,320.87,,British Gas Business,GAS009,Community Services,Revenue,Energy Costs,Utilities
http://thanet.gov.uk/supplierspend,Thanet District Council,03/11/2015,394883,1750,,Call Flow Solutions Limited,CAL006,Community Services,Revenue,Communications & Computing,ICT
http://thanet.gov.uk/supplierspend,Thanet District Council,03/11/2015,395359,19878.33,,Canterbury City Council,CAN004,East Kent Shared Services,Revenue,Grants & Subscriptions,Various Cats-Public Sector
http://thanet.gov.uk/supplierspend,Thanet District Council,03/11/2015,395824,371.72,,Computerland Uk Limited,COM045,Corporate Resources and S151,Revenue,Communications & Computing,ICT
http://thanet.gov.uk/supplierspend,Thanet District Council,03/11/2015,394930,44112.21,,Dcb (Kent) Ltd,DCB001,Corporate Resources and S151,Balance Sheet,Repairs And Mtce Holding A/C,Construction-Repair And Maint
http://thanet.gov.uk/supplierspend,Thanet District Council,03/11/2015,394931,1155,,Dcb (Kent) Ltd,DCB001,Corporate Resources and S151,Balance Sheet,Repairs And Mtce Holding A/C,Construction-Repair And Maint
http://thanet.gov.uk/supplierspend,Thanet District Council,03/11/2015,394932,2749.05,,Dcb (Kent) Ltd,DCB001,Corporate Resources and S151,Balance Sheet,Repairs And Mtce Holding A/C,Construction-Repair And Maint
http://thanet.gov.uk/supplierspend,Thanet District Council,03/11/2015,394933,7624.92,,Dcb (Kent) Ltd,DCB001,Corporate Resources and S151,Balance Sheet,Repairs And Mtce Holding A/C,Construction-Repair And Maint
http://thanet.gov.uk/supplierspend,Thanet District Council,03/11/2015,395511,6666.39,,Dover District Council,DOV001,East Kent Shared Services,Revenue,Services,Various Cats-Public Sector
http://thanet.gov.uk/supplierspend,Thanet District Council,03/11/2015,395446,3749.44,,Downfast Demolition & Salvage Ltd,DOW001,Operational Services,Revenue,"Repairs,  Alter & Mtce - Build",Building Construction Material
http://thanet.gov.uk/supplierspend,Thanet District Council,03/11/2015,395535,262.5,,E Saunders Margate Ltd,SAU001,Corporate Resources and S151,Balance Sheet,Repairs And Mtce Holding A/C,Construction-Repair And Maint
http://thanet.gov.uk/supplierspend,Thanet District Council,03/11/2015,395536,788.52,,E Saunders Margate Ltd,SAU001,Corporate Resources and S151,Balance Sheet,Repairs And Mtce Holding A/C,Construction-Repair And Maint
http://thanet.gov.uk/supplierspend,Thanet District Council,03/11/2015,395896,4388,,Egbert H Taylor & Company Ltd,TAY005,Operational Services,Revenue,"Equip, Furniture And Materials",Environmental Services
http://thanet.gov.uk/supplierspend,Thanet District Council,03/11/2015,395273,3811.28,,Electoral Reform Services,ELE010,Corporate Governance,Revenue,"Print, Stat And Gen Off Exps",Facilities And Mangement Serv
http://thanet.gov.uk/supplierspend,Thanet District Council,03/11/2015,394817,240,,Exterion Media (Uk) Limited,EXT002,Corporate Governance,Revenue,Miscellaneous Expenses,Facilities And Mangement Serv
http://thanet.gov.uk/supplierspend,Thanet District Council,03/11/2015,395897,13274.84,,Facultatieve Technologies,FAC003,Operational Services,Revenue,"Repairs,  Alter & Mtce - Build",Cemetery And Crematorium
http://thanet.gov.uk/supplierspend,Thanet District Council,03/11/2015,395985,832.62,,Family Mosaic Housing,FAM001,Corporate Resources and S151,Balance Sheet,Capital Exp-Non Council Assets,Housing Management
http://thanet.gov.uk/supplierspend,Thanet District Council,03/11/2015,394785,2436.56,,Forecourt Installation Services Ltd,FOR021,Operational Services,Revenue,"Repairs,  Alter & Mtce - Build",Maritime Services
http://thanet.gov.uk/supplierspend,Thanet District Council,03/11/2015,395862,260,,G & G Forklifts,GGF001,Operational Services,Revenue,"Repairs,  Alter & Mtce - Build",Vehicle Management
http://thanet.gov.uk/supplierspend,Thanet District Council,03/11/2015,395817,360,,Gb Sport & Leisure Uk Ltd,GBS002,Operational Services,Revenue,"Equip, Furniture And Materials",Sports Playground Equipment
http://thanet.gov.uk/supplierspend,Thanet District Council,03/11/2015,395856,1521.9,,Glasdon Uk Ltd,GLA001,Operational Services,Revenue,"Equip, Furniture And Materials",Environmental Services
http://thanet.gov.uk/supplierspend,Thanet District Council,03/11/2015,395888,389.9,,Grummant (H & P Services) Ltd,GRU001,Operational Services,Revenue,"Repairs,  Alter & Mtce - Build",Construction-Repair And Maint
http://thanet.gov.uk/supplierspend,Thanet District Council,03/11/2015,395980,780,,Housing Training & Consultancy Ltd,HOU016,Community Services,Revenue,Expenses,Human Resources
http://thanet.gov.uk/supplierspend,Thanet District Council,03/11/2015,395440,442.52,,Hr Go Recruitment Ltd,HRG002,Community Services,Revenue,Agency Staff,Human Resources
http://thanet.gov.uk/supplierspend,Thanet District Council,03/11/2015,395546,10305.1,,Hr Go Recruitment Ltd,HRG002,Operational Services,Revenue,Agency Staff,Human Resources
http://thanet.gov.uk/supplierspend,Thanet District Council,03/11/2015,395915,479.08,,Hr Go Recruitment Ltd,HRG002,Operational Services,Revenue,Agency Staff,Human Resources
http://thanet.gov.uk/supplierspend,Thanet District Council,03/11/2015,395916,321,,Hr Go Recruitment Ltd,HRG002,Operational Services,Revenue,Agency Staff,Human Resources
http://thanet.gov.uk/supplierspend,Thanet District Council,03/11/2015,395918,1288.32,,Hr Go Recruitment Ltd,HRG002,Operational Services,Revenue,Agency Staff,Human Resources
http://thanet.gov.uk/supplierspend,Thanet District Council,03/11/2015,395919,851.74,,Hr Go Recruitment Ltd,HRG002,Operational Services,Revenue,Agency Staff,Human Resources
http://thanet.gov.uk/supplierspend,Thanet District Council,03/11/2015,395825,1700,,Hse Training Ltd,HSE002,Operational Services,Revenue,"Equip, Furniture And Materials",Human Resources
http://thanet.gov.uk/supplierspend,Thanet District Council,03/11/2015,394808,842.54,,Inphase Ltd,INP001,Corporate Resources and S151,Revenue,Services,ICT
http://thanet.gov.uk/supplierspend,Thanet District Council,03/11/2015,395852,490.88,,Jark Industrial Ltd,JAR013,Operational Services,Revenue,Agency Staff,Human Resources
http://thanet.gov.uk/supplierspend,Thanet District Council,03/11/2015,395876,481.31,,Jark Industrial Ltd,JAR013,Operational Services,Revenue,Agency Staff,Human Resources
http://thanet.gov.uk/supplierspend,Thanet District Council,03/11/2015,395984,564.2,,John Gale,GAL001,Corporate Resources and S151,Balance Sheet,Capital Exp-Non Council Assets,Grants
http://thanet.gov.uk/supplierspend,Thanet District Council,03/11/2015,395812,255,,Kavanagh Motor Group Limited,KAV002,Operational Services,Revenue,Direct Transport Costs,Vehicle Management
http://thanet.gov.uk/supplierspend,Thanet District Council,03/11/2015,395335,2878.43,,Kent County Council (Kcs),KCC003,Community Services,Revenue,"Equip, Furniture And Materials",Facilities And Mangement Serv
http://thanet.gov.uk/supplierspend,Thanet District Council,03/11/2015,395335,293.91,,Kent County Council (Kcs),KCC003,Operational Services,Revenue,"Equip, Furniture And Materials",Facilities And Mangement Serv
http://thanet.gov.uk/supplierspend,Thanet District Council,03/11/2015,395938,1900,,Kpmg Llp Fees Account,KPM001,Corporate Resources and S151,Revenue,Services,Financial Services
http://thanet.gov.uk/supplierspend,Thanet District Council,03/11/2015,395904,4097.86,,L W Burt & Son Ltd,BUR027,Community Services,Revenue,"Repairs,  Alter & Mtce - Build",Construction-Repair And Maint
http://thanet.gov.uk/supplierspend,Thanet District Council,03/11/2015,395884,320,,M D Electrics,MDE001,Community Services,Revenue,"Repairs,  Alter & Mtce - Build",Building Construction Material
http://thanet.gov.uk/supplierspend,Thanet District Council,03/11/2015,395887,640,,M D Electrics,MDE001,Community Services,Revenue,"Repairs,  Alter & Mtce - Build",Building Construction Material
http://thanet.gov.uk/supplierspend,Thanet District Council,03/11/2015,394108,6500,,Matt Hutchings,HUT003,Community Services,Revenue,Services,Legal Services
http://thanet.gov.uk/supplierspend,Thanet District Council,03/11/2015,395515,1100,,Maxwells Grounds Maintenance Ltd,MAX002,Operational Services,Revenue,"Repairs,  Alter & Mtce - Build",Construction-Repair And Maint
http://thanet.gov.uk/supplierspend,Thanet District Council,03/11/2015,395811,284.34,,Mears Ltd,MEA003,Operational Services,Revenue,"Repairs,  Alter & Mtce - Build",Construction-Repair And Maint
http://thanet.gov.uk/supplierspend,Thanet District Council,03/11/2015,395851,395,,Medway Galvanising Company Ltd,MGC001,Operational Services,Revenue,"Repairs,  Alter & Mtce - Build",Construction-Repair And Maint
http://thanet.gov.uk/supplierspend,Thanet District Council,03/11/2015,395288,1129,,Midland Software Limited,MID013,Corporate Resources and S151,Balance Sheet,Plant And Equipment,ICT
http://thanet.gov.uk/supplierspend,Thanet District Council,03/11/2015,395289,4779.59,,Midland Software Limited,MID013,Corporate Resources and S151,Balance Sheet,Plant And Equipment,ICT
http://thanet.gov.uk/supplierspend,Thanet District Council,03/11/2015,395290,2264.78,,Midland Software Limited,MID013,Corporate Resources and S151,Balance Sheet,Plant And Equipment,ICT
http://thanet.gov.uk/supplierspend,Thanet District Council,03/11/2015,395291,2163.2,,Midland Software Limited,MID013,Corporate Resources and S151,Balance Sheet,Plant And Equipment,ICT
http://thanet.gov.uk/supplierspend,Thanet District Council,03/11/2015,395339,333,,Morgan Jones Ltd,MOR001,Community Services,Revenue,Agency Staff,Human Resources
http://thanet.gov.uk/supplierspend,Thanet District Council,03/11/2015,395866,343.62,,Morgan Jones Ltd,MOR001,Community Services,Revenue,Agency Staff,Human Resources
http://thanet.gov.uk/supplierspend,Thanet District Council,03/11/2015,395016,9247.68,,Neopost Ltd,NEO003,Community Services,Revenue,"Equip, Furniture And Materials",Mail Services
http://thanet.gov.uk/supplierspend,Thanet District Council,03/11/2015,395543,691.47,,Neopost Ltd,NEO003,Community Services,Revenue,"Equip, Furniture And Materials",Mail Services
http://thanet.gov.uk/supplierspend,Thanet District Council,03/11/2015,395804,304.25,,Neopost Ltd,NEO003,Community Services,Revenue,"Equip, Furniture And Materials",Mail Services
http://thanet.gov.uk/supplierspend,Thanet District Council,03/11/2015,395981,3000,,Neopost Ltd Credifon,NEO002,Community Services,Revenue,Communications & Computing,Mail Services
http://thanet.gov.uk/supplierspend,Thanet District Council,03/11/2015,395427,-2295.66,,Northgate Public Services (Uk) Ltd,NOR018,East Kent Shared Services,Revenue,Communications & Computing,ICT
http://thanet.gov.uk/supplierspend,Thanet District Council,03/11/2015,395428,2500,,Northgate Public Services (Uk) Ltd,NOR018,East Kent Shared Services,Revenue,Communications & Computing,ICT
http://thanet.gov.uk/supplierspend,Thanet District Council,03/11/2015,395735,269.12,,Ocs Group Uk Ltd T/A Fountains,OCS005,Operational Services,Revenue,Fixtures & Fittings,Cleaning And Janitorial
http://thanet.gov.uk/supplierspend,Thanet District Council,03/11/2015,395738,886.1,,Ocs Group Uk Ltd T/A Fountains,OCS005,Operational Services,Revenue,Fixtures & Fittings,Cleaning And Janitorial
http://thanet.gov.uk/supplierspend,Thanet District Council,03/11/2015,395739,371.1,,Ocs Group Uk Ltd T/A Fountains,OCS005,Operational Services,Revenue,Fixtures & Fittings,Cleaning And Janitorial
http://thanet.gov.uk/supplierspend,Thanet District Council,03/11/2015,395740,442.13,,Ocs Group Uk Ltd T/A Fountains,OCS005,Operational Services,Revenue,Fixtures & Fittings,Cleaning And Janitorial
http://thanet.gov.uk/supplierspend,Thanet District Council,03/11/2015,395748,18056.74,,Ocs Group Uk Ltd T/A Fountains,OCS005,Operational Services,Revenue,Cleaning & Domestic Supplies,Cleaning And Janitorial
http://thanet.gov.uk/supplierspend,Thanet District Council,03/11/2015,395750,254.46,,Ocs Group Uk Ltd T/A Fountains,OCS005,Operational Services,Revenue,Fixtures & Fittings,Cleaning And Janitorial
http://thanet.gov.uk/supplierspend,Thanet District Council,03/11/2015,395946,1300,,Office Of Communications,OFF006,Operational Services,Revenue,Services,ICT
http://thanet.gov.uk/supplierspend,Thanet District Council,03/11/2015,395512,90,,Parkeon Limited,PAR063,Community Services,Revenue,"Equip, Furniture And Materials",Street And Traffic Management
http://thanet.gov.uk/supplierspend,Thanet District Council,03/11/2015,395512,882.5,,Parkeon Limited,PAR063,Operational Services,Revenue,"Equip, Furniture And Materials",Street And Traffic Management
http://thanet.gov.uk/supplierspend,Thanet District Council,03/11/2015,395350,257.88,,Phoenix Software Ltd,PHO002,East Kent Shared Services,Revenue,Communications & Computing,ICT
http://thanet.gov.uk/supplierspend,Thanet District Council,03/11/2015,395353,341.6,,Phoenix Software Ltd,PHO002,Community Services,Revenue,Communications & Computing,ICT
http://thanet.gov.uk/supplierspend,Thanet District Council,03/11/2015,394225,2145,,Portakabin Ltd,POR001,Operational Services,Revenue,"Repairs,  Alter & Mtce - Build",Facilities And Mangement Serv
http://thanet.gov.uk/supplierspend,Thanet District Council,03/11/2015,395075,1225,,Premier Signs,PRE027,Operational Services,Revenue,Direct Transport Costs,Building Construction Material
http://thanet.gov.uk/supplierspend,Thanet District Council,03/11/2015,395754,229.08,,Probrand Ltd,PRO012,East Kent Shared Services,Revenue,Communications & Computing,ICT
http://thanet.gov.uk/supplierspend,Thanet District Council,03/11/2015,395782,821.25,,Profile Security Services Limited,PRO018,Operational Services,Revenue,Services,Facilities And Mangement Serv
http://thanet.gov.uk/supplierspend,Thanet District Council,03/11/2015,395992,11000,,REDACTED PERSONAL DATA,N/A,Community Services,Revenue,Other Transfer Payments,Non Trade Payee
http://thanet.gov.uk/supplierspend,Thanet District Council,03/11/2015,395993,11000,,REDACTED PERSONAL DATA,N/A,Community Services,Revenue,Other Transfer Payments,Non Trade Payee
http://thanet.gov.uk/supplierspend,Thanet District Council,03/11/2015,395467,1320,,Reed Specialist Recruitment Ltd,REE015,East Kent Shared Services,Revenue,Agency Staff,Human Resources
http://thanet.gov.uk/supplierspend,Thanet District Council,03/11/2015,395529,371.25,,Rexel Uk Limited,REX003,Operational Services,Revenue,"Repairs,  Alter & Mtce - Build",Building Construction Material
http://thanet.gov.uk/supplierspend,Thanet District Council,03/11/2015,394829,3307.91,,Royal Mail,ROY004,Community Services,Revenue,Communications & Computing,Mail Services
http://thanet.gov.uk/supplierspend,Thanet District Council,03/11/2015,395532,-1465.92,,Royal Mail,ROY004,Community Services,Revenue,Communications & Computing,Mail Services
http://thanet.gov.uk/supplierspend,Thanet District Council,03/11/2015,395432,2714.77,,Sellick Partnership Ltd,SEL011,Corporate Governance,Revenue,Services,Human Resources
http://thanet.gov.uk/supplierspend,Thanet District Council,03/11/2015,395337,1536,,Sharpe Pritchard Llp,SHA030,Community Services,Revenue,Services,Legal Services
http://thanet.gov.uk/supplierspend,Thanet District Council,03/11/2015,395881,840.95,,Southern Water,SWA001,Operational Services,Revenue,Water Services,Utilities
http://thanet.gov.uk/supplierspend,Thanet District Council,03/11/2015,395882,343.97,,Southern Water,SWA001,Operational Services,Revenue,Water Services,Utilities
http://thanet.gov.uk/supplierspend,Thanet District Council,03/11/2015,395530,407.4,,Spaldings  Ltd,SPA006,Operational Services,Revenue,"Equip, Furniture And Materials",Horticultural
http://thanet.gov.uk/supplierspend,Thanet District Council,03/11/2015,394109,5000,,Spider Project Management Ltd,SPI009,Corporate Resources and S151,Balance Sheet,Investment Property For Lease,Consultancy
http://thanet.gov.uk/supplierspend,Thanet District Council,03/11/2015,395808,356.35,,Tennant Uk Cleaning Solutions Ltd,TEN006,Operational Services,Revenue,Direct Transport Costs,Vehicle Management
http://thanet.gov.uk/supplierspend,Thanet District Council,03/11/2015,395786,566.88,,Tfa Fuel Services Ltd,TFA003,Operational Services,Revenue,"Equip, Furniture And Materials",Utilities
http://thanet.gov.uk/supplierspend,Thanet District Council,03/11/2015,394242,604.15,,The Glenwood Hotel,GLE007,Community Services,Revenue,Services,Housing Management
http://thanet.gov.uk/supplierspend,Thanet District Council,03/11/2015,394854,3604.16,,The Glenwood Hotel,GLE007,Community Services,Revenue,Services,Housing Management
http://thanet.gov.uk/supplierspend,Thanet District Council,03/11/2015,395047,3312.5,,The Glenwood Hotel,GLE007,Community Services,Revenue,Services,Housing Management
http://thanet.gov.uk/supplierspend,Thanet District Council,03/11/2015,395048,499.99,,The Glenwood Hotel,GLE007,Community Services,Revenue,Services,Housing Management
http://thanet.gov.uk/supplierspend,Thanet District Council,03/11/2015,395533,2854.17,,The Glenwood Hotel,GLE007,Community Services,Revenue,Services,Housing Management
http://thanet.gov.uk/supplierspend,Thanet District Council,03/11/2015,395534,583.32,,The Glenwood Hotel,GLE007,Community Services,Revenue,Services,Housing Management
http://thanet.gov.uk/supplierspend,Thanet District Council,03/11/2015,394794,370,,Thomson Reuters,THO043,Corporate Governance,Revenue,"Print, Stat And Gen Off Exps",Human Resources
http://thanet.gov.uk/supplierspend,Thanet District Council,03/11/2015,395987,5642,,Trueden Disability Adaptations Ltd,TRU012,Corporate Resources and S151,Balance Sheet,Capital Exp-Non Council Assets,Grants
http://thanet.gov.uk/supplierspend,Thanet District Council,03/11/2015,395937,275,,Wallace Print Limited,WAL034,Operational Services,Revenue,Miscellaneous Expenses,Facilities And Mangement Serv
http://thanet.gov.uk/supplierspend,Thanet District Council,03/11/2015,395986,1866.24,,Westbrook Construction (Margate) Ltd,WES021,Corporate Resources and S151,Balance Sheet,Capital Exp-Non Council Assets,Various Categories
http://thanet.gov.uk/supplierspend,Thanet District Council,03/11/2015,395837,580.1,,Westbury Industrial Supplies Ltd,WES042,Operational Services,Revenue,"Clothes, Uniforms & Laundry",Clothing
http://thanet.gov.uk/supplierspend,Thanet District Council,03/11/2015,395880,611.38,,Westbury Industrial Supplies Ltd,WES042,Operational Services,Revenue,"Equip, Furniture And Materials",Clothing
http://thanet.gov.uk/supplierspend,Thanet District Council,03/11/2015,395728,3770.5,,White Star Software Limited,WHI045,East Kent Shared Services,Revenue,Expenses,Human Resources
http://thanet.gov.uk/supplierspend,Thanet District Council,03/11/2015,395978,500,,Wright Hassall Llp,WRI008,Community Services,Revenue,Services,Legal Services
http://thanet.gov.uk/supplierspend,Thanet District Council,10/11/2015,395865,240,,A W Warner & Sons Ltd,WAR006,Operational Services,Revenue,"Repairs,  Alter & Mtce - Build",Horticultural
http://thanet.gov.uk/supplierspend,Thanet District Council,10/11/2015,395755,589.78,,Adecco Uk Ltd,ADE005,Chief Executive,Revenue,Agency Staff,Human Resources
http://thanet.gov.uk/supplierspend,Thanet District Council,10/11/2015,395972,589.78,,Adecco Uk Ltd,ADE005,Chief Executive,Revenue,Agency Staff,Human Resources
http://thanet.gov.uk/supplierspend,Thanet District Council,10/11/2015,396437,356,,Afs (Security) Limited,AFS002,Operational Services,Revenue,"Equip, Furniture And Materials",Facilities And Mangement Serv
http://thanet.gov.uk/supplierspend,Thanet District Council,10/11/2015,395859,484,,All Access Ltd,ALL031,Community Services,Revenue,Services,Building Construction Material
http://thanet.gov.uk/supplierspend,Thanet District Council,10/11/2015,395853,392,,All Sign Solutions Ltd,ALL002,Operational Services,Revenue,"Equip, Furniture And Materials",Building Construction Material
http://thanet.gov.uk/supplierspend,Thanet District Council,10/11/2015,395967,352.5,,Andy Morris,MOR028,Community Services,Revenue,Services,Arts And Leisure Services
http://thanet.gov.uk/supplierspend,Thanet District Council,10/11/2015,395968,412.5,,Andy Morris,MOR028,Community Services,Revenue,Services,Arts And Leisure Services
http://thanet.gov.uk/supplierspend,Thanet District Council,10/11/2015,395958,418.5,,Beckwith Consulting Limited,BEC001,Corporate Resources and S151,Revenue,Training,Human Resources
http://thanet.gov.uk/supplierspend,Thanet District Council,10/11/2015,395964,300,,Bradstowe Chartered Surveyors,BRA027,Community Services,Revenue,Services,Facilities And Mangement Serv
http://thanet.gov.uk/supplierspend,Thanet District Council,10/11/2015,396479,4832.55,,Bramling Construction Ltd,BRA020,Corporate Resources and S151,Balance Sheet,Capital Exp-Non Council Assets,Grants
http://thanet.gov.uk/supplierspend,Thanet District Council,10/11/2015,394884,1233.87,,Call Flow Solutions Limited,CAL006,Community Services,Revenue,Communications & Computing,ICT
http://thanet.gov.uk/supplierspend,Thanet District Council,10/11/2015,395994,3468.26,,Call Flow Solutions Limited,CAL006,Community Services,Revenue,Communications & Computing,ICT
http://thanet.gov.uk/supplierspend,Thanet District Council,10/11/2015,395971,387.9,,Carol Peters,PET003,Community Services,Revenue,Services,Agency Payments
http://thanet.gov.uk/supplierspend,Thanet District Council,10/11/2015,396168,2200,,Craemer Uk Limited,CRA013,Operational Services,Revenue,"Equip, Furniture And Materials",Environmental Services
http://thanet.gov.uk/supplierspend,Thanet District Council,10/11/2015,396341,770.5,,Dura Composites,DUR002,Operational Services,Revenue,"Repairs,  Alter & Mtce - Build",Building Construction Material
http://thanet.gov.uk/supplierspend,Thanet District Council,10/11/2015,396129,209.04,,East Kent Components Ltd,EKC006,Operational Services,Revenue,Direct Transport Costs,Vehicle Management
http://thanet.gov.uk/supplierspend,Thanet District Council,10/11/2015,396169,81.18,,Electoral Reform Services,ELE010,Corporate Governance,Revenue,Communications & Computing,Facilities And Mangement Serv
http://thanet.gov.uk/supplierspend,Thanet District Council,10/11/2015,396169,493.12,,Electoral Reform Services,ELE010,Corporate Governance,Revenue,"Print, Stat And Gen Off Exps",Facilities And Mangement Serv
http://thanet.gov.uk/supplierspend,Thanet District Council,10/11/2015,395506,480,,Exterion Media (Uk) Limited,EXT002,Corporate Governance,Revenue,Miscellaneous Expenses,Facilities And Mangement Serv
http://thanet.gov.uk/supplierspend,Thanet District Council,10/11/2015,396480,840.4,,Family Mosaic Housing,FAM001,Corporate Resources and S151,Balance Sheet,Capital Exp-Non Council Assets,Housing Management
http://thanet.gov.uk/supplierspend,Thanet District Council,10/11/2015,396433,6330.94,,Fresh Acres Nurseries Limited,FRE017,Operational Services,Revenue,"Repairs,  Alter & Mtce - Build",Horticultural
http://thanet.gov.uk/supplierspend,Thanet District Council,10/11/2015,396270,386.1,,Global Experience Specialists Ltd,GLO015,Operational Services,Revenue,Miscellaneous Expenses,Utilities
http://thanet.gov.uk/supplierspend,Thanet District Council,10/11/2015,396526,659,,Green Knight Lettings (Thanet) Ltd,GRE056,Community Services,Revenue,Grants & Subscriptions,Housing Management
http://thanet.gov.uk/supplierspend,Thanet District Council,10/11/2015,395891,2300,,Hags-Smp Limited,HAG004,Operational Services,Revenue,"Repairs,  Alter & Mtce - Build",Sports Playground Equipment
http://thanet.gov.uk/supplierspend,Thanet District Council,10/11/2015,395903,375,,Hi Way Services Ltd,HIW002,Operational Services,Revenue,"Repairs,  Alter & Mtce - Build",Highway Equipment And Material
http://thanet.gov.uk/supplierspend,Thanet District Council,10/11/2015,395545,5971.66,,Hr Go Recruitment Ltd,HRG002,Operational Services,Revenue,Agency Staff,Human Resources
http://thanet.gov.uk/supplierspend,Thanet District Council,10/11/2015,395917,442.52,,Hr Go Recruitment Ltd,HRG002,Community Services,Revenue,Agency Staff,Human Resources
http://thanet.gov.uk/supplierspend,Thanet District Council,10/11/2015,396268,388.5,,Hr Go Recruitment Ltd,HRG002,Operational Services,Revenue,Agency Staff,Human Resources
http://thanet.gov.uk/supplierspend,Thanet District Council,10/11/2015,395973,940,,Idox Software  Limited,IDO001,Community Services,Revenue,Communications & Computing,ICT
http://thanet.gov.uk/supplierspend,Thanet District Council,10/11/2015,396261,2275,,Imperial Civil Enforcement Sols Ltd,IMP008,Operational Services,Revenue,Communications & Computing,Street And Traffic Management
http://thanet.gov.uk/supplierspend,Thanet District Council,10/11/2015,395286,945,,Irrv,IRR002,East Kent Shared Services,Revenue,Expenses,Human Resources
http://thanet.gov.uk/supplierspend,Thanet District Council,10/11/2015,396477,2250,,Island Events,ISL009,Community Services,Revenue,Grants & Subscriptions,Grants
http://thanet.gov.uk/supplierspend,Thanet District Council,10/11/2015,396351,326.49,,Kelway Ltd,KEL003,Corporate Governance,Revenue,"Equip, Furniture And Materials",ICT
http://thanet.gov.uk/supplierspend,Thanet District Council,10/11/2015,396165,400,,Km Media Group Limited,KMM001,Corporate Resources and S151,Revenue,Miscellaneous Expenses,Facilities And Mangement Serv
http://thanet.gov.uk/supplierspend,Thanet District Council,10/11/2015,395900,1030.71,,L W Burt & Son Ltd,BUR027,Community Services,Revenue,"Repairs,  Alter & Mtce - Build",Construction-Repair And Maint
http://thanet.gov.uk/supplierspend,Thanet District Council,10/11/2015,395901,417.96,,L W Burt & Son Ltd,BUR027,Community Services,Revenue,"Repairs,  Alter & Mtce - Build",Construction-Repair And Maint
http://thanet.gov.uk/supplierspend,Thanet District Council,10/11/2015,395902,1642,,L W Burt & Son Ltd,BUR027,Community Services,Revenue,"Repairs,  Alter & Mtce - Build",Construction-Repair And Maint
http://thanet.gov.uk/supplierspend,Thanet District Council,10/11/2015,395544,1075,,Landor Travel Publications Limited,LAN023,Community Services,Revenue,Miscellaneous Expenses,Facilities And Mangement Serv
http://thanet.gov.uk/supplierspend,Thanet District Council,10/11/2015,395975,411.1,,Lyreco Uk Limited,LYR001,Community Services,Revenue,"Print, Stat And Gen Off Exps",Stationery
http://thanet.gov.uk/supplierspend,Thanet District Council,10/11/2015,396258,791.66,,Mama Feelgoods,MAM004,Community Services,Revenue,Catering,Facilities And Mangement Serv
http://thanet.gov.uk/supplierspend,Thanet District Council,10/11/2015,395772,3625,,Matt Hutchings,HUT003,Community Services,Revenue,Services,Legal Services
http://thanet.gov.uk/supplierspend,Thanet District Council,10/11/2015,395729,469.88,,Mears Ltd,MEA003,Corporate Resources and S151,Revenue,"Repairs,  Alter & Mtce - Build",Construction-Repair And Maint
http://thanet.gov.uk/supplierspend,Thanet District Council,10/11/2015,395729,262.79,,Mears Ltd,MEA003,Community Services,Revenue,"Repairs,  Alter & Mtce - Build",Construction-Repair And Maint
http://thanet.gov.uk/supplierspend,Thanet District Council,10/11/2015,395729,578.53,,Mears Ltd,MEA003,Operational Services,Revenue,"Repairs,  Alter & Mtce - Build",Construction-Repair And Maint
http://thanet.gov.uk/supplierspend,Thanet District Council,10/11/2015,395794,1973.65,,Mears Ltd,MEA003,Community Services,Revenue,"Repairs,  Alter & Mtce - Build",Construction-Repair And Maint
http://thanet.gov.uk/supplierspend,Thanet District Council,10/11/2015,395795,2065.39,,Mears Ltd,MEA003,Community Services,Revenue,"Repairs,  Alter & Mtce - Build",Construction-Repair And Maint
http://thanet.gov.uk/supplierspend,Thanet District Council,10/11/2015,395796,416.28,,Mears Ltd,MEA003,Community Services,Revenue,"Repairs,  Alter & Mtce - Build",Construction-Repair And Maint
http://thanet.gov.uk/supplierspend,Thanet District Council,10/11/2015,395796,902.54,,Mears Ltd,MEA003,Operational Services,Revenue,"Repairs,  Alter & Mtce - Build",Construction-Repair And Maint
http://thanet.gov.uk/supplierspend,Thanet District Council,10/11/2015,395801,101199.36,,Mears Ltd,MEA003,Community Services,Revenue,"Repairs,  Alter & Mtce - Build",Construction-Repair And Maint
http://thanet.gov.uk/supplierspend,Thanet District Council,10/11/2015,395813,712.17,,Mears Ltd,MEA003,Community Services,Revenue,"Repairs,  Alter & Mtce - Build",Construction-Repair And Maint
http://thanet.gov.uk/supplierspend,Thanet District Council,10/11/2015,396246,65749.67,,Mears Ltd,MEA003,Corporate Resources and S151,Balance Sheet,Repairs And Mtce Holding A/C,Construction-Repair And Maint
http://thanet.gov.uk/supplierspend,Thanet District Council,10/11/2015,396247,6239.02,,Mears Ltd,MEA003,Corporate Resources and S151,Balance Sheet,Repairs And Mtce Holding A/C,Construction-Repair And Maint
http://thanet.gov.uk/supplierspend,Thanet District Council,10/11/2015,396248,6835.49,,Mears Ltd,MEA003,Corporate Resources and S151,Balance Sheet,Repairs And Mtce Holding A/C,Construction-Repair And Maint
http://thanet.gov.uk/supplierspend,Thanet District Council,10/11/2015,396249,6175.61,,Mears Ltd,MEA003,Corporate Resources and S151,Balance Sheet,Repairs And Mtce Holding A/C,Construction-Repair And Maint
http://thanet.gov.uk/supplierspend,Thanet District Council,10/11/2015,396267,1078.63,,Mears Ltd,MEA003,Community Services,Revenue,"Repairs,  Alter & Mtce - Build",Construction-Repair And Maint
http://thanet.gov.uk/supplierspend,Thanet District Council,10/11/2015,395867,582.75,,Morgan Jones Ltd,MOR001,Community Services,Revenue,Agency Staff,Human Resources
http://thanet.gov.uk/supplierspend,Thanet District Council,10/11/2015,395466,375,,Mrs Jo Bridges,BRI042,Community Services,Revenue,"Print, Stat And Gen Off Exps",Facilities And Mangement Serv
http://thanet.gov.uk/supplierspend,Thanet District Council,10/11/2015,395957,3904.56,,National Express Ltd,NAT010,Community Services,Revenue,Services,Agency Payments
http://thanet.gov.uk/supplierspend,Thanet District Council,10/11/2015,396160,600,,North West Kent College,NOR007,Operational Services,Revenue,Training,Education
http://thanet.gov.uk/supplierspend,Thanet District Council,10/11/2015,395930,11545.57,,Ocs Group Uk Ltd T/A Fountains,OCS005,Corporate Resources and S151,Balance Sheet,Repairs And Mtce Holding A/C,Cleaning And Janitorial
http://thanet.gov.uk/supplierspend,Thanet District Council,10/11/2015,395849,297.64,,Orbis Protect Limited,ORB009,Community Services,Revenue,Services,Facilities And Mangement Serv
http://thanet.gov.uk/supplierspend,Thanet District Council,10/11/2015,396524,1150,,P A Rental Limited,PAR069,Community Services,Revenue,Grants & Subscriptions,Housing Management
http://thanet.gov.uk/supplierspend,Thanet District Council,10/11/2015,396266,215.1,,Presco Uk Limited,PRE003,Community Services,Revenue,"Print, Stat And Gen Off Exps",Facilities And Mangement Serv
http://thanet.gov.uk/supplierspend,Thanet District Council,10/11/2015,396311,21882.8,,Profile Security Services Limited,PRO018,Operational Services,Revenue,Services,Facilities And Mangement Serv
http://thanet.gov.uk/supplierspend,Thanet District Council,10/11/2015,396312,426.4,,Profile Security Services Limited,PRO018,Operational Services,Revenue,Services,Facilities And Mangement Serv
http://thanet.gov.uk/supplierspend,Thanet District Council,10/11/2015,395333,315,,Q-Matic Uk Limited,QMA001,East Kent Shared Services,Revenue,"Print, Stat And Gen Off Exps",ICT
http://thanet.gov.uk/supplierspend,Thanet District Council,10/11/2015,395868,846.65,,Ramsgate Trophies,RTR001,Community Services,Revenue,"Equip, Furniture And Materials",Arts And Leisure Services
http://thanet.gov.uk/supplierspend,Thanet District Council,10/11/2015,395942,1320,,Reed Specialist Recruitment Ltd,REE015,East Kent Shared Services,Revenue,Agency Staff,Human Resources
http://thanet.gov.uk/supplierspend,Thanet District Council,10/11/2015,395894,360,,Rigby Taylor Ltd,RIG002,Operational Services,Revenue,"Repairs,  Alter & Mtce - Build",Horticultural
http://thanet.gov.uk/supplierspend,Thanet District Council,10/11/2015,395895,309.96,,Scan Coin Limited,SCA001,Operational Services,Revenue,"Equip, Furniture And Materials",Financial Services
http://thanet.gov.uk/supplierspend,Thanet District Council,10/11/2015,395520,9700,,Sellick Partnership Ltd,SEL011,Corporate Governance,Revenue,Agency Staff,Human Resources
http://thanet.gov.uk/supplierspend,Thanet District Council,10/11/2015,395521,5300,,Sellick Partnership Ltd,SEL011,Corporate Governance,Revenue,Agency Staff,Human Resources
http://thanet.gov.uk/supplierspend,Thanet District Council,10/11/2015,396264,670,,Socitm Limited,SOC001,East Kent Shared Services,Revenue,Grants & Subscriptions,Financial Services
http://thanet.gov.uk/supplierspend,Thanet District Council,10/11/2015,396189,420.54,,Southern Electric,SEL007,Community Services,Revenue,Energy Costs,Utilities
http://thanet.gov.uk/supplierspend,Thanet District Council,10/11/2015,396176,1083,,Southern Water,SWA001,Operational Services,Revenue,Water Services,Utilities
http://thanet.gov.uk/supplierspend,Thanet District Council,10/11/2015,396177,720.37,,Southern Water,SWA001,Operational Services,Revenue,Water Services,Utilities
http://thanet.gov.uk/supplierspend,Thanet District Council,10/11/2015,396183,688.35,,Southern Water,SWA001,Operational Services,Revenue,Water Services,Utilities
http://thanet.gov.uk/supplierspend,Thanet District Council,10/11/2015,396185,376.89,,Southern Water,SWA001,Community Services,Revenue,Water Services,Utilities
http://thanet.gov.uk/supplierspend,Thanet District Council,10/11/2015,396475,654.6,,Thanet Athletics Club,TAT003,Community Services,Revenue,Grants & Subscriptions,Grants
http://thanet.gov.uk/supplierspend,Thanet District Council,10/11/2015,396374,699.3,,Thanet Waste Services Ltd,TWA001,Operational Services,Revenue,Private Contractors,Environmental Services
http://thanet.gov.uk/supplierspend,Thanet District Council,10/11/2015,394979,6224.71,,The Dreamland Trust,DRE003,Community Services,Revenue,Energy Costs,Arts And Leisure Services
http://thanet.gov.uk/supplierspend,Thanet District Council,10/11/2015,395447,208724.47,,Topbond Plc,TOP010,Corporate Resources and S151,Balance Sheet,Other Land And Buildings-Hra,Construction-Repair And Maint
http://thanet.gov.uk/supplierspend,Thanet District Council,10/11/2015,396418,330,,Vale Engineering (York) Limited,VAL008,Operational Services,Revenue,"Equip, Furniture And Materials",Horticultural
http://thanet.gov.uk/supplierspend,Thanet District Council,10/11/2015,396255,3500,,Zoho Corporation Private Ltd,ZOH001,East Kent Shared Services,Revenue,"Equip, Furniture And Materials",ICT
http://thanet.gov.uk/supplierspend,Thanet District Council,11/11/2015,395441,101382.62,,Coombs (Canterbury) Ltd,COO033,Corporate Resources and S151,Balance Sheet,Other Land And Buildings-Hra,Construction-Repair And Maint
http://thanet.gov.uk/supplierspend,Thanet District Council,11/11/2015,395271,801.68,,Electoral Reform Services,ELE010,Corporate Governance,Revenue,"Print, Stat And Gen Off Exps",Facilities And Mangement Serv
http://thanet.gov.uk/supplierspend,Thanet District Council,11/11/2015,395272,3037.74,,Electoral Reform Services,ELE010,Corporate Governance,Revenue,Services,Facilities And Mangement Serv
http://thanet.gov.uk/supplierspend,Thanet District Council,11/11/2015,395517,1052.77,,Royal Mail,ROY004,Corporate Governance,Revenue,Communications & Computing,Mail Services
http://thanet.gov.uk/supplierspend,Thanet District Council,11/11/2015,395513,494.13,,Serco Ltd,SER002,Operational Services,Revenue,"Repairs,  Alter & Mtce - Build",Building Construction Material
http://thanet.gov.uk/supplierspend,Thanet District Council,11/11/2015,394783,2788,,Uplands Engineering Ltd,UPL001,Corporate Resources and S151,Balance Sheet,Plant And Equipment,Maritime Services
http://thanet.gov.uk/supplierspend,Thanet District Council,13/11/2015,394970,20594.59,,J Rospo Building Contractors,ROS001,Corporate Resources and S151,Balance Sheet,Rechargeable Works,Construction-Repair And Maint
http://thanet.gov.uk/supplierspend,Thanet District Council,13/11/2015,396476,615,,Kingsgate Golf Club Limited,KIN041,Community Services,Revenue,Grants & Subscriptions,Grants
http://thanet.gov.uk/supplierspend,Thanet District Council,13/11/2015,395541,2870.15,,Royal Mail,ROY004,Community Services,Revenue,Communications & Computing,Mail Services
http://thanet.gov.uk/supplierspend,Thanet District Council,13/11/2015,396223,2907.74,,Royal Mail,ROY004,Community Services,Revenue,Communications & Computing,Mail Services
http://thanet.gov.uk/supplierspend,Thanet District Council,17/11/2015,396431,589.78,,Adecco Uk Ltd,ADE005,Chief Executive,Revenue,Agency Staff,Human Resources
http://thanet.gov.uk/supplierspend,Thanet District Council,17/11/2015,396159,4063.44,,Advanced Business Solutions,COA011,Corporate Resources and S151,Revenue,Communications & Computing,ICT
http://thanet.gov.uk/supplierspend,Thanet District Council,17/11/2015,396337,2438,,Advanced Business Solutions,COA011,Corporate Resources and S151,Revenue,Communications & Computing,ICT
http://thanet.gov.uk/supplierspend,Thanet District Council,17/11/2015,396701,577.78,,Agwood Ltd,AGW001,Operational Services,Revenue,"Repairs,  Alter & Mtce - Build",Vehicle Management
http://thanet.gov.uk/supplierspend,Thanet District Council,17/11/2015,395940,5967.02,,Albion Fencing&Construction Kent Ltd,ALB005,Operational Services,Revenue,"Repairs,  Alter & Mtce - Build",Building Construction Material
http://thanet.gov.uk/supplierspend,Thanet District Council,17/11/2015,395941,3140.07,,Albion Fencing&Construction Kent Ltd,ALB005,Operational Services,Revenue,"Repairs,  Alter & Mtce - Build",Building Construction Material
http://thanet.gov.uk/supplierspend,Thanet District Council,17/11/2015,396365,8075,,Ass For Public Service Excellence,ASS013,Operational Services,Revenue,Services,Human Resources
http://thanet.gov.uk/supplierspend,Thanet District Council,17/11/2015,396324,330,,Astra Uk (Contracts) Ltd,AST003,Operational Services,Revenue,Cleaning & Domestic Supplies,Environmental Services
http://thanet.gov.uk/supplierspend,Thanet District Council,17/11/2015,396326,330,,Astra Uk (Contracts) Ltd,AST003,Operational Services,Revenue,Cleaning & Domestic Supplies,Environmental Services
http://thanet.gov.uk/supplierspend,Thanet District Council,17/11/2015,396376,5968.87,,Ats Euromaster Ltd,ATS002,Operational Services,Revenue,Direct Transport Costs,Vehicle Management
http://thanet.gov.uk/supplierspend,Thanet District Council,17/11/2015,396427,318,,B B Design,BBD001,Corporate Resources and S151,Balance Sheet,Repairs And Mtce Holding A/C,Consultancy
http://thanet.gov.uk/supplierspend,Thanet District Council,17/11/2015,396778,5930,,Bramling Construction Ltd,BRA020,Corporate Resources and S151,Balance Sheet,Capital Exp-Non Council Assets,Grants
http://thanet.gov.uk/supplierspend,Thanet District Council,17/11/2015,396792,7470,,Bramling Construction Ltd,BRA020,Corporate Resources and S151,Balance Sheet,Capital Exp-Non Council Assets,Grants
http://thanet.gov.uk/supplierspend,Thanet District Council,17/11/2015,396912,18120,,Bramling Construction Ltd,BRA020,Corporate Resources and S151,Balance Sheet,Capital Exp-Non Council Assets,Grants
http://thanet.gov.uk/supplierspend,Thanet District Council,17/11/2015,396646,680.25,,Bt Payment Services Ltd,BTE003,Operational Services,Revenue,Communications & Computing,ICT
http://thanet.gov.uk/supplierspend,Thanet District Council,17/11/2015,396217,1710,,Bureau Veritas Uk Ltd,BUR022,Community Services,Revenue,"Equip, Furniture And Materials",Consultancy
http://thanet.gov.uk/supplierspend,Thanet District Council,17/11/2015,396895,1722,,Canon (Uk) Ltd,CAN021,Community Services,Revenue,"Equip, Furniture And Materials",Facilities And Mangement Serv
http://thanet.gov.uk/supplierspend,Thanet District Council,17/11/2015,396896,1722,,Canon (Uk) Ltd,CAN021,Community Services,Revenue,"Equip, Furniture And Materials",Facilities And Mangement Serv
http://thanet.gov.uk/supplierspend,Thanet District Council,17/11/2015,396739,5203.07,,Canterbury Christ Church University,CAN006,Community Services,Revenue,Energy Costs,Various Categories
http://thanet.gov.uk/supplierspend,Thanet District Council,17/11/2015,396272,487.44,,Castle Automotive & Eng Supp Ltd,CAS024,Operational Services,Revenue,"Equip, Furniture And Materials",Vehicle Management
http://thanet.gov.uk/supplierspend,Thanet District Council,17/11/2015,395878,1550,,Clear Skies Software Ltd,CLE004,Operational Services,Revenue,Communications & Computing,ICT
http://thanet.gov.uk/supplierspend,Thanet District Council,17/11/2015,396438,482.96,,Cobalt Telephone Technologies Ltd,COB002,Operational Services,Revenue,Services,ICT
http://thanet.gov.uk/supplierspend,Thanet District Council,17/11/2015,396488,618.3,,Computerland Uk Limited,COM045,East Kent Shared Services,Revenue,Communications & Computing,ICT
http://thanet.gov.uk/supplierspend,Thanet District Council,17/11/2015,395929,700,,Connaught Hotel Dover Limited,CON046,Community Services,Revenue,Services,Housing Management
http://thanet.gov.uk/supplierspend,Thanet District Council,17/11/2015,396286,700,,Connaught Hotel Dover Limited,CON046,Community Services,Revenue,Services,Housing Management
http://thanet.gov.uk/supplierspend,Thanet District Council,17/11/2015,396512,1325.25,,Crown Estate,CRO022,Operational Services,Revenue,Rents,Maritime Services
http://thanet.gov.uk/supplierspend,Thanet District Council,17/11/2015,396515,31450.25,,Crown Estate,CRO022,Operational Services,Revenue,Rents,Maritime Services
http://thanet.gov.uk/supplierspend,Thanet District Council,17/11/2015,396516,25264.75,,Crown Estate,CRO022,Operational Services,Revenue,Rents,Maritime Services
http://thanet.gov.uk/supplierspend,Thanet District Council,17/11/2015,396517,4435.75,,Crown Estate,CRO022,Operational Services,Revenue,Rents,Maritime Services
http://thanet.gov.uk/supplierspend,Thanet District Council,17/11/2015,396719,320,,Dave Hanna Electrical Services,HAN018,Community Services,Revenue,"Repairs,  Alter & Mtce - Build",ICT
http://thanet.gov.uk/supplierspend,Thanet District Council,17/11/2015,395961,2288,,Dawsonrentals Sweepers,DAW003,Operational Services,Revenue,Cont Hire & Operating Lease,Vehicle Management
http://thanet.gov.uk/supplierspend,Thanet District Council,17/11/2015,396369,436.96,,Dennis Eagle Ltd,DEN005,Operational Services,Revenue,Direct Transport Costs,Vehicle Management
http://thanet.gov.uk/supplierspend,Thanet District Council,17/11/2015,396417,212.29,,Dennis Eagle Ltd,DEN005,Operational Services,Revenue,Direct Transport Costs,Vehicle Management
http://thanet.gov.uk/supplierspend,Thanet District Council,17/11/2015,396471,389.81,,Dennis Eagle Ltd,DEN005,Operational Services,Revenue,Direct Transport Costs,Vehicle Management
http://thanet.gov.uk/supplierspend,Thanet District Council,17/11/2015,396459,2508,,Disclosure And Barring Service,DIS017,Community Services,Revenue,"Equip, Furniture And Materials",Human Resources
http://thanet.gov.uk/supplierspend,Thanet District Council,17/11/2015,396782,4600,,Dolphin Lifts Kent,DOL003,Corporate Resources and S151,Balance Sheet,Capital Exp-Non Council Assets,Grants
http://thanet.gov.uk/supplierspend,Thanet District Council,17/11/2015,395510,1375.9,,Dover District Council,DOV001,Chief Executive,Revenue,Services,Various Cats-Public Sector
http://thanet.gov.uk/supplierspend,Thanet District Council,17/11/2015,396413,57940.98,,Downfast Demolition & Salvage Ltd,DOW001,Corporate Resources and S151,Balance Sheet,Other Land And Buildings-Hra,Building Construction Material
http://thanet.gov.uk/supplierspend,Thanet District Council,17/11/2015,396359,1025,,Dr R K Chhabra,CHH001,Operational Services,Revenue,Services,Cemetery And Crematorium
http://thanet.gov.uk/supplierspend,Thanet District Council,17/11/2015,396708,636.58,,E Saunders Margate Ltd,SAU001,Community Services,Revenue,"Repairs,  Alter & Mtce - Build",Construction-Repair And Maint
http://thanet.gov.uk/supplierspend,Thanet District Council,17/11/2015,396709,655.85,,E Saunders Margate Ltd,SAU001,Community Services,Revenue,"Repairs,  Alter & Mtce - Build",Construction-Repair And Maint
http://thanet.gov.uk/supplierspend,Thanet District Council,17/11/2015,396342,495,,East Kent Hose,EKH004,Operational Services,Revenue,Direct Transport Costs,Vehicle Management
http://thanet.gov.uk/supplierspend,Thanet District Council,17/11/2015,396345,332,,East Kent Hose,EKH004,Operational Services,Revenue,Direct Transport Costs,Vehicle Management
http://thanet.gov.uk/supplierspend,Thanet District Council,17/11/2015,396346,260,,East Kent Hose,EKH004,Operational Services,Revenue,Direct Transport Costs,Vehicle Management
http://thanet.gov.uk/supplierspend,Thanet District Council,17/11/2015,396773,499.56,,Family Mosaic Housing,FAM001,Corporate Resources and S151,Balance Sheet,Capital Exp-Non Council Assets,Housing Management
http://thanet.gov.uk/supplierspend,Thanet District Council,17/11/2015,396775,715.6,,Family Mosaic Housing,FAM001,Corporate Resources and S151,Balance Sheet,Capital Exp-Non Council Assets,Housing Management
http://thanet.gov.uk/supplierspend,Thanet District Council,17/11/2015,396780,508,,Family Mosaic Housing,FAM001,Corporate Resources and S151,Balance Sheet,Capital Exp-Non Council Assets,Housing Management
http://thanet.gov.uk/supplierspend,Thanet District Council,17/11/2015,396783,2072.8,,Family Mosaic Housing,FAM001,Corporate Resources and S151,Balance Sheet,Capital Exp-Non Council Assets,Housing Management
http://thanet.gov.uk/supplierspend,Thanet District Council,17/11/2015,396787,832,,Family Mosaic Housing,FAM001,Corporate Resources and S151,Balance Sheet,Capital Exp-Non Council Assets,Housing Management
http://thanet.gov.uk/supplierspend,Thanet District Council,17/11/2015,396791,900.4,,Family Mosaic Housing,FAM001,Corporate Resources and S151,Balance Sheet,Capital Exp-Non Council Assets,Housing Management
http://thanet.gov.uk/supplierspend,Thanet District Council,17/11/2015,396793,1251.4,,Family Mosaic Housing,FAM001,Corporate Resources and S151,Balance Sheet,Capital Exp-Non Council Assets,Housing Management
http://thanet.gov.uk/supplierspend,Thanet District Council,17/11/2015,396908,803.75,,Family Mosaic Housing,FAM001,Corporate Resources and S151,Balance Sheet,Capital Exp-Non Council Assets,Housing Management
http://thanet.gov.uk/supplierspend,Thanet District Council,17/11/2015,396913,2070.4,,Family Mosaic Housing,FAM001,Corporate Resources and S151,Balance Sheet,Capital Exp-Non Council Assets,Housing Management
http://thanet.gov.uk/supplierspend,Thanet District Council,17/11/2015,396134,600,,Florence Court Hotel,FLO003,Community Services,Revenue,Services,Housing Management
http://thanet.gov.uk/supplierspend,Thanet District Council,17/11/2015,396135,780,,Florence Court Hotel,FLO003,Community Services,Revenue,Services,Housing Management
http://thanet.gov.uk/supplierspend,Thanet District Council,17/11/2015,396136,780,,Florence Court Hotel,FLO003,Community Services,Revenue,Services,Housing Management
http://thanet.gov.uk/supplierspend,Thanet District Council,17/11/2015,396138,990,,Florence Court Hotel,FLO003,Community Services,Revenue,Services,Housing Management
http://thanet.gov.uk/supplierspend,Thanet District Council,17/11/2015,396139,1550,,Florence Court Hotel,FLO003,Community Services,Revenue,Services,Housing Management
http://thanet.gov.uk/supplierspend,Thanet District Council,17/11/2015,396140,540,,Florence Court Hotel,FLO003,Community Services,Revenue,Services,Housing Management
http://thanet.gov.uk/supplierspend,Thanet District Council,17/11/2015,396141,930,,Florence Court Hotel,FLO003,Community Services,Revenue,Services,Housing Management
http://thanet.gov.uk/supplierspend,Thanet District Council,17/11/2015,396143,930,,Florence Court Hotel,FLO003,Community Services,Revenue,Services,Housing Management
http://thanet.gov.uk/supplierspend,Thanet District Council,17/11/2015,396144,930,,Florence Court Hotel,FLO003,Community Services,Revenue,Services,Housing Management
http://thanet.gov.uk/supplierspend,Thanet District Council,17/11/2015,396145,1350,,Florence Court Hotel,FLO003,Community Services,Revenue,Services,Housing Management
http://thanet.gov.uk/supplierspend,Thanet District Council,17/11/2015,396146,930,,Florence Court Hotel,FLO003,Community Services,Revenue,Services,Housing Management
http://thanet.gov.uk/supplierspend,Thanet District Council,17/11/2015,396278,614,,Frandham Boarding Kennels,FRA010,Operational Services,Revenue,Services,Environmental Services
http://thanet.gov.uk/supplierspend,Thanet District Council,17/11/2015,396279,307,,Frandham Boarding Kennels,FRA010,Operational Services,Revenue,Services,Environmental Services
http://thanet.gov.uk/supplierspend,Thanet District Council,17/11/2015,393035,1000,,Gardiner & Theobald Llp,GAR020,Corporate Resources and S151,Balance Sheet,Investment Property For Lease,Consultancy
http://thanet.gov.uk/supplierspend,Thanet District Council,17/11/2015,393036,2000,,Gardiner & Theobald Llp,GAR020,Corporate Resources and S151,Balance Sheet,Investment Property For Lease,Consultancy
http://thanet.gov.uk/supplierspend,Thanet District Council,17/11/2015,396327,1360,,Gas Contract Services Ltd,GAS004,Corporate Resources and S151,Balance Sheet,Repairs And Mtce Holding A/C,Construction-Repair And Maint
http://thanet.gov.uk/supplierspend,Thanet District Council,17/11/2015,396798,275.94,,Geesink Norba Ltd,GEE006,Operational Services,Revenue,Direct Transport Costs,Vehicle Management
http://thanet.gov.uk/supplierspend,Thanet District Council,17/11/2015,396356,3650,,Global Radio Services Ltd,GLO011,Corporate Governance,Revenue,Services,Facilities And Mangement Serv
http://thanet.gov.uk/supplierspend,Thanet District Council,17/11/2015,396357,600,,Global Radio Services Ltd,GLO011,Corporate Governance,Revenue,Services,Facilities And Mangement Serv
http://thanet.gov.uk/supplierspend,Thanet District Council,17/11/2015,396428,412.58,,Greenham,GRE001,Corporate Resources and S151,Balance Sheet,Repairs And Mtce Holding A/C,Clothing
http://thanet.gov.uk/supplierspend,Thanet District Council,17/11/2015,395752,770,,Gulliver'S Truck Hire Limited,GUL001,Operational Services,Revenue,Cont Hire & Operating Lease,Vehicle Management
http://thanet.gov.uk/supplierspend,Thanet District Council,17/11/2015,396393,770,,Gulliver'S Truck Hire Limited,GUL001,Operational Services,Revenue,Cont Hire & Operating Lease,Vehicle Management
http://thanet.gov.uk/supplierspend,Thanet District Council,17/11/2015,396505,770,,Gulliver'S Truck Hire Limited,GUL001,Operational Services,Revenue,Cont Hire & Operating Lease,Vehicle Management
http://thanet.gov.uk/supplierspend,Thanet District Council,17/11/2015,396506,770,,Gulliver'S Truck Hire Limited,GUL001,Operational Services,Revenue,Cont Hire & Operating Lease,Vehicle Management
http://thanet.gov.uk/supplierspend,Thanet District Council,17/11/2015,396681,770,,Gulliver'S Truck Hire Limited,GUL001,Operational Services,Revenue,Cont Hire & Operating Lease,Vehicle Management
http://thanet.gov.uk/supplierspend,Thanet District Council,17/11/2015,396862,835.4,,H E Municipal Engineering Ltd,HEM003,Operational Services,Revenue,Direct Transport Costs,Vehicle Management
http://thanet.gov.uk/supplierspend,Thanet District Council,17/11/2015,396863,341.2,,H E Municipal Engineering Ltd,HEM003,Operational Services,Revenue,Direct Transport Costs,Vehicle Management
http://thanet.gov.uk/supplierspend,Thanet District Council,17/11/2015,396287,1540,,Haymarket Media Group Ltd,HAY018,Community Services,Revenue,Advertising Expenses,Financial Services
http://thanet.gov.uk/supplierspend,Thanet District Council,17/11/2015,395034,980,,Holbrook Revell Electrical Ltd,HOL015,Operational Services,Revenue,"Repairs,  Alter & Mtce - Build",Building Construction Material
http://thanet.gov.uk/supplierspend,Thanet District Council,17/11/2015,396819,1122.5,,Holbrook Revell Electrical Ltd,HOL015,Operational Services,Revenue,"Equip, Furniture And Materials",Building Construction Material
http://thanet.gov.uk/supplierspend,Thanet District Council,17/11/2015,396819,4423.33,,Holbrook Revell Electrical Ltd,HOL015,Operational Services,Revenue,"Repairs,  Alter & Mtce - Build",Building Construction Material
http://thanet.gov.uk/supplierspend,Thanet District Council,17/11/2015,396821,2052.75,,Holbrook Revell Electrical Ltd,HOL015,Operational Services,Revenue,"Repairs,  Alter & Mtce - Build",Building Construction Material
http://thanet.gov.uk/supplierspend,Thanet District Council,17/11/2015,395820,560,,Holt & Wotton Ltd,HOL001,Corporate Resources and S151,Balance Sheet,Repairs And Mtce Holding A/C,Building Construction Material
http://thanet.gov.uk/supplierspend,Thanet District Council,17/11/2015,396113,6915.25,,Hr Go Recruitment Ltd,HRG002,Operational Services,Revenue,Agency Staff,Human Resources
http://thanet.gov.uk/supplierspend,Thanet District Council,17/11/2015,396114,10481.81,,Hr Go Recruitment Ltd,HRG002,Operational Services,Revenue,Agency Staff,Human Resources
http://thanet.gov.uk/supplierspend,Thanet District Council,17/11/2015,396481,442.52,,Hr Go Recruitment Ltd,HRG002,Community Services,Revenue,Agency Staff,Human Resources
http://thanet.gov.uk/supplierspend,Thanet District Council,17/11/2015,396482,955.04,,Hr Go Recruitment Ltd,HRG002,Operational Services,Revenue,Agency Staff,Human Resources
http://thanet.gov.uk/supplierspend,Thanet District Council,17/11/2015,396483,463.15,,Hr Go Recruitment Ltd,HRG002,Operational Services,Revenue,Agency Staff,Human Resources
http://thanet.gov.uk/supplierspend,Thanet District Council,17/11/2015,396485,851.74,,Hr Go Recruitment Ltd,HRG002,Operational Services,Revenue,Agency Staff,Human Resources
http://thanet.gov.uk/supplierspend,Thanet District Council,17/11/2015,396486,315.65,,Hr Go Recruitment Ltd,HRG002,Operational Services,Revenue,Agency Staff,Human Resources
http://thanet.gov.uk/supplierspend,Thanet District Council,17/11/2015,396876,851.74,,Hr Go Recruitment Ltd,HRG002,Operational Services,Revenue,Agency Staff,Human Resources
http://thanet.gov.uk/supplierspend,Thanet District Council,17/11/2015,396878,479.08,,Hr Go Recruitment Ltd,HRG002,Operational Services,Revenue,Agency Staff,Human Resources
http://thanet.gov.uk/supplierspend,Thanet District Council,17/11/2015,396879,395.9,,Hr Go Recruitment Ltd,HRG002,Operational Services,Revenue,Agency Staff,Human Resources
http://thanet.gov.uk/supplierspend,Thanet District Council,17/11/2015,396880,915.92,,Hr Go Recruitment Ltd,HRG002,Operational Services,Revenue,Agency Staff,Human Resources
http://thanet.gov.uk/supplierspend,Thanet District Council,17/11/2015,396881,442.52,,Hr Go Recruitment Ltd,HRG002,Community Services,Revenue,Agency Staff,Human Resources
http://thanet.gov.uk/supplierspend,Thanet District Council,17/11/2015,396909,6188.68,,Hubbard & Houghton Construction Ltd,HUB003,Corporate Resources and S151,Balance Sheet,Capital Exp-Non Council Assets,Construction-Repair And Maint
http://thanet.gov.uk/supplierspend,Thanet District Council,17/11/2015,396362,225,,J Redpath Buchanan & Co Ltd,RED001,Community Services,Revenue,"Repairs,  Alter & Mtce - Build",Building Construction Material
http://thanet.gov.uk/supplierspend,Thanet District Council,17/11/2015,396363,450,,J Redpath Buchanan & Co Ltd,RED001,Operational Services,Revenue,"Repairs,  Alter & Mtce - Build",Building Construction Material
http://thanet.gov.uk/supplierspend,Thanet District Council,17/11/2015,396795,482.59,,Jark Industrial Ltd,JAR013,Operational Services,Revenue,Agency Staff,Human Resources
http://thanet.gov.uk/supplierspend,Thanet District Council,17/11/2015,396796,473.66,,Jark Industrial Ltd,JAR013,Operational Services,Revenue,Agency Staff,Human Resources
http://thanet.gov.uk/supplierspend,Thanet District Council,17/11/2015,396649,403.75,,Jewson Ltd,JEW001,Operational Services,Revenue,"Equip, Furniture And Materials",Building Construction Material
http://thanet.gov.uk/supplierspend,Thanet District Council,17/11/2015,396903,552,,John Gale,GAL001,Corporate Resources and S151,Balance Sheet,Capital Exp-Non Council Assets,Grants
http://thanet.gov.uk/supplierspend,Thanet District Council,17/11/2015,396907,833.5,,John Gale,GAL001,Corporate Resources and S151,Balance Sheet,Capital Exp-Non Council Assets,Grants
http://thanet.gov.uk/supplierspend,Thanet District Council,17/11/2015,396910,629.2,,John Gale,GAL001,Corporate Resources and S151,Balance Sheet,Capital Exp-Non Council Assets,Grants
http://thanet.gov.uk/supplierspend,Thanet District Council,17/11/2015,396390,401.92,,Kan-Doo Timber Supplies Ltd,KAN002,Operational Services,Revenue,"Equip, Furniture And Materials",Building Construction Material
http://thanet.gov.uk/supplierspend,Thanet District Council,17/11/2015,396338,245.81,,Kent County Council (Kcs),KCC003,Community Services,Revenue,"Equip, Furniture And Materials",Facilities And Mangement Serv
http://thanet.gov.uk/supplierspend,Thanet District Council,17/11/2015,396355,273.31,,Kent County Council (Kcs),KCC003,Community Services,Revenue,"Repairs,  Alter & Mtce - Build",Facilities And Mangement Serv
http://thanet.gov.uk/supplierspend,Thanet District Council,17/11/2015,396403,-239.75,,Kent County Council (Kcs),KCC003,Operational Services,Revenue,Energy Costs,Facilities And Mangement Serv
http://thanet.gov.uk/supplierspend,Thanet District Council,17/11/2015,396404,-237.59,,Kent County Council (Kcs),KCC003,Operational Services,Revenue,Energy Costs,Facilities And Mangement Serv
http://thanet.gov.uk/supplierspend,Thanet District Council,17/11/2015,396405,-285.97,,Kent County Council (Kcs),KCC003,Operational Services,Revenue,Energy Costs,Facilities And Mangement Serv
http://thanet.gov.uk/supplierspend,Thanet District Council,17/11/2015,396406,-421.39,,Kent County Council (Kcs),KCC003,Operational Services,Revenue,Energy Costs,Facilities And Mangement Serv
http://thanet.gov.uk/supplierspend,Thanet District Council,17/11/2015,396434,240.29,,Kent County Council (Kcs),KCC003,Operational Services,Revenue,Energy Costs,Facilities And Mangement Serv
http://thanet.gov.uk/supplierspend,Thanet District Council,17/11/2015,396726,1041.94,,Kent County Council (Kcs),KCC003,Community Services,Revenue,Energy Costs,Facilities And Mangement Serv
http://thanet.gov.uk/supplierspend,Thanet District Council,17/11/2015,396727,269.83,,Kent County Council (Kcs),KCC003,Community Services,Revenue,Energy Costs,Facilities And Mangement Serv
http://thanet.gov.uk/supplierspend,Thanet District Council,17/11/2015,396729,330.1,,Kent County Council (Kcs),KCC003,Operational Services,Revenue,Energy Costs,Facilities And Mangement Serv
http://thanet.gov.uk/supplierspend,Thanet District Council,17/11/2015,396730,230.42,,Kent County Council (Kcs),KCC003,Operational Services,Revenue,Energy Costs,Facilities And Mangement Serv
http://thanet.gov.uk/supplierspend,Thanet District Council,17/11/2015,396731,890.61,,Kent County Council (Kcs),KCC003,Community Services,Revenue,Energy Costs,Facilities And Mangement Serv
http://thanet.gov.uk/supplierspend,Thanet District Council,17/11/2015,396732,867.5,,Kent County Council (Kcs),KCC003,Community Services,Revenue,Energy Costs,Facilities And Mangement Serv
http://thanet.gov.uk/supplierspend,Thanet District Council,17/11/2015,396841,7343.66,,Kent County Council (Kcs),KCC003,Community Services,Revenue,Energy Costs,Facilities And Mangement Serv
http://thanet.gov.uk/supplierspend,Thanet District Council,17/11/2015,396842,7886.39,,Kent County Council (Kcs),KCC003,Operational Services,Revenue,Energy Costs,Facilities And Mangement Serv
http://thanet.gov.uk/supplierspend,Thanet District Council,17/11/2015,396843,3265.73,,Kent County Council (Kcs),KCC003,Operational Services,Revenue,Energy Costs,Facilities And Mangement Serv
http://thanet.gov.uk/supplierspend,Thanet District Council,17/11/2015,396339,3500,,Kent Wildlife Trust,KEN007,Community Services,Revenue,Grants & Subscriptions,Various Categories
http://thanet.gov.uk/supplierspend,Thanet District Council,17/11/2015,396647,3583.6,,Level 3 Communications (Uk) Ltd,LEV005,Corporate Resources and S151,Balance Sheet,Telephone Holding Account,ICT
http://thanet.gov.uk/supplierspend,Thanet District Council,17/11/2015,396764,1426.36,,Ling Metals Limited,LIN004,Operational Services,Revenue,Cleaning & Domestic Supplies,Environmental Services
http://thanet.gov.uk/supplierspend,Thanet District Council,17/11/2015,396682,543.98,,Local World Limited,LOC018,Corporate Resources and S151,Revenue,Miscellaneous Expenses,Facilities And Mangement Serv
http://thanet.gov.uk/supplierspend,Thanet District Council,17/11/2015,396518,580,,M D Electrics,MDE001,Community Services,Revenue,"Repairs,  Alter & Mtce - Build",Building Construction Material
http://thanet.gov.uk/supplierspend,Thanet District Council,17/11/2015,396755,1015,,Mag:Net Solutions Limited,MAG005,East Kent Shared Services,Revenue,Services,ICT
http://thanet.gov.uk/supplierspend,Thanet District Council,17/11/2015,396900,1500,,Margate Town Team Cic,MTO001,Community Services,Revenue,Grants & Subscriptions,Grants
http://thanet.gov.uk/supplierspend,Thanet District Council,17/11/2015,396901,500,,Margate Town Team Cic,MTO001,Community Services,Revenue,Grants & Subscriptions,Grants
http://thanet.gov.uk/supplierspend,Thanet District Council,17/11/2015,396361,315,,Marleybrooks Nurseries,MAR030,Operational Services,Revenue,Services,Horticultural
http://thanet.gov.uk/supplierspend,Thanet District Council,17/11/2015,396446,300,,Maxwells Grounds Maintenance Ltd,MAX002,Community Services,Revenue,"Repairs,  Alter & Mtce - Build",Construction-Repair And Maint
http://thanet.gov.uk/supplierspend,Thanet District Council,17/11/2015,396648,250,,Maxwells Grounds Maintenance Ltd,MAX002,Operational Services,Revenue,"Repairs,  Alter & Mtce - Build",Construction-Repair And Maint
http://thanet.gov.uk/supplierspend,Thanet District Council,17/11/2015,395819,1526.81,,Mears Ltd,MEA003,Community Services,Revenue,"Repairs,  Alter & Mtce - Build",Construction-Repair And Maint
http://thanet.gov.uk/supplierspend,Thanet District Council,17/11/2015,396394,464.51,,Mears Ltd,MEA003,Operational Services,Revenue,"Repairs,  Alter & Mtce - Build",Construction-Repair And Maint
http://thanet.gov.uk/supplierspend,Thanet District Council,17/11/2015,396493,321,,Mears Ltd,MEA003,Operational Services,Revenue,"Repairs,  Alter & Mtce - Build",Construction-Repair And Maint
http://thanet.gov.uk/supplierspend,Thanet District Council,17/11/2015,396673,972.68,,Mears Ltd,MEA003,Operational Services,Revenue,"Repairs,  Alter & Mtce - Build",Construction-Repair And Maint
http://thanet.gov.uk/supplierspend,Thanet District Council,17/11/2015,396741,7194.22,,Mears Ltd,MEA003,Corporate Resources and S151,Balance Sheet,Repairs And Mtce Holding A/C,Construction-Repair And Maint
http://thanet.gov.uk/supplierspend,Thanet District Council,17/11/2015,396742,5274.43,,Mears Ltd,MEA003,Corporate Resources and S151,Balance Sheet,Repairs And Mtce Holding A/C,Construction-Repair And Maint
http://thanet.gov.uk/supplierspend,Thanet District Council,17/11/2015,396743,1593.19,,Mears Ltd,MEA003,Corporate Resources and S151,Balance Sheet,Repairs And Mtce Holding A/C,Construction-Repair And Maint
http://thanet.gov.uk/supplierspend,Thanet District Council,17/11/2015,396744,15807.14,,Mears Ltd,MEA003,Corporate Resources and S151,Balance Sheet,Repairs And Mtce Holding A/C,Construction-Repair And Maint
http://thanet.gov.uk/supplierspend,Thanet District Council,17/11/2015,396745,10598.08,,Mears Ltd,MEA003,Corporate Resources and S151,Balance Sheet,Repairs And Mtce Holding A/C,Construction-Repair And Maint
http://thanet.gov.uk/supplierspend,Thanet District Council,17/11/2015,396154,309.67,,Midland Software Limited,MID013,Corporate Resources and S151,Balance Sheet,Plant And Equipment,ICT
http://thanet.gov.uk/supplierspend,Thanet District Council,17/11/2015,396156,1147.68,,Midland Software Limited,MID013,Corporate Resources and S151,Balance Sheet,Plant And Equipment,ICT
http://thanet.gov.uk/supplierspend,Thanet District Council,17/11/2015,396381,582.75,,Morgan Jones Ltd,MOR001,Community Services,Revenue,Agency Staff,Human Resources
http://thanet.gov.uk/supplierspend,Thanet District Council,17/11/2015,396762,582.75,,Morgan Jones Ltd,MOR001,Community Services,Revenue,Agency Staff,Human Resources
http://thanet.gov.uk/supplierspend,Thanet District Council,17/11/2015,396353,622.5,,Mr Darren Osborne,OSB008,Community Services,Revenue,Cleaning & Domestic Supplies,Cleaning And Janitorial
http://thanet.gov.uk/supplierspend,Thanet District Council,17/11/2015,396353,30,,Mr Darren Osborne,OSB008,Operational Services,Revenue,Cleaning & Domestic Supplies,Cleaning And Janitorial
http://thanet.gov.uk/supplierspend,Thanet District Council,17/11/2015,396690,1500,,Mr Paul Tapsell,TAP002,Community Services,Revenue,Services,Legal Services
http://thanet.gov.uk/supplierspend,Thanet District Council,17/11/2015,395783,280,,N K F Seymour Electrical Cont,SEY002,Community Services,Revenue,Services,Building Construction Material
http://thanet.gov.uk/supplierspend,Thanet District Council,17/11/2015,396919,325,,Nayland Rock Hotels Ltd,NAY002,Community Services,Revenue,Services,Housing Management
http://thanet.gov.uk/supplierspend,Thanet District Council,17/11/2015,396920,525,,Nayland Rock Hotels Ltd,NAY002,Community Services,Revenue,Services,Housing Management
http://thanet.gov.uk/supplierspend,Thanet District Council,17/11/2015,396921,525,,Nayland Rock Hotels Ltd,NAY002,Community Services,Revenue,Services,Housing Management
http://thanet.gov.uk/supplierspend,Thanet District Council,17/11/2015,396387,583.65,,Ncc Mechanical Services Limited,NCC006,Community Services,Revenue,"Repairs,  Alter & Mtce - Build",Construction-Repair And Maint
http://thanet.gov.uk/supplierspend,Thanet District Council,17/11/2015,396149,1900,,Northgate Public Services (Uk) Ltd,NOR018,Corporate Resources and S151,Revenue,Communications & Computing,ICT
http://thanet.gov.uk/supplierspend,Thanet District Council,17/11/2015,396904,5520,,Northwood Builders,NOR002,Corporate Resources and S151,Balance Sheet,Capital Exp-Non Council Assets,Grants
http://thanet.gov.uk/supplierspend,Thanet District Council,17/11/2015,396911,6292,,Northwood Builders,NOR002,Corporate Resources and S151,Balance Sheet,Capital Exp-Non Council Assets,Grants
http://thanet.gov.uk/supplierspend,Thanet District Council,17/11/2015,395777,213.84,,Ocs Group Uk Ltd T/A Cannon,OCS003,Community Services,Revenue,"Equip, Furniture And Materials",Cleaning And Janitorial
http://thanet.gov.uk/supplierspend,Thanet District Council,17/11/2015,395737,797.69,,Ocs Group Uk Ltd T/A Fountains,OCS005,Community Services,Revenue,Cleaning & Domestic Supplies,Cleaning And Janitorial
http://thanet.gov.uk/supplierspend,Thanet District Council,17/11/2015,396313,7236.2,,Ostia Consulting Limited,OST001,Community Services,Revenue,Services,Consultancy
http://thanet.gov.uk/supplierspend,Thanet District Council,17/11/2015,396388,1607.6,,Palmstead Nurseries Ltd,PAL015,Operational Services,Revenue,"Equip, Furniture And Materials",Horticultural
http://thanet.gov.uk/supplierspend,Thanet District Council,17/11/2015,396503,1117.99,,Peer 1 (Uk) Limited,PEE003,East Kent Shared Services,Revenue,Communications & Computing,ICT
http://thanet.gov.uk/supplierspend,Thanet District Council,17/11/2015,396510,3732.93,,Phoenix Software Ltd,PHO002,East Kent Shared Services,Revenue,Communications & Computing,ICT
http://thanet.gov.uk/supplierspend,Thanet District Council,17/11/2015,395966,4210.92,,Potter Raper Partnership,POT006,Corporate Resources and S151,Balance Sheet,Council Dwellings,Housing Management
http://thanet.gov.uk/supplierspend,Thanet District Council,17/11/2015,395516,4225,,Premier Signs,PRE027,Corporate Resources and S151,Balance Sheet,Other Land And Buildings-Hra,Building Construction Material
http://thanet.gov.uk/supplierspend,Thanet District Council,17/11/2015,395970,588,,Primesight Limited,PRI033,Corporate Governance,Revenue,"Print, Stat And Gen Off Exps",Facilities And Mangement Serv
http://thanet.gov.uk/supplierspend,Thanet District Council,17/11/2015,395751,665,,R Cannon,CAN007,Operational Services,Revenue,Services,Maritime Services
http://thanet.gov.uk/supplierspend,Thanet District Council,17/11/2015,396280,332.5,,R Cannon,CAN007,Operational Services,Revenue,Services,Maritime Services
http://thanet.gov.uk/supplierspend,Thanet District Council,17/11/2015,396468,1320,,Reed Specialist Recruitment Ltd,REE015,East Kent Shared Services,Revenue,Agency Staff,Human Resources
http://thanet.gov.uk/supplierspend,Thanet District Council,17/11/2015,396650,8654,,Rigby Taylor Ltd,RIG002,Operational Services,Revenue,"Repairs,  Alter & Mtce - Build",Horticultural
http://thanet.gov.uk/supplierspend,Thanet District Council,17/11/2015,396350,360,,Rippleffect,RIP001,Community Services,Revenue,Communications & Computing,ICT
http://thanet.gov.uk/supplierspend,Thanet District Council,17/11/2015,396902,850,,Round In Circles Limited,ROU005,Community Services,Revenue,Grants & Subscriptions,Grants
http://thanet.gov.uk/supplierspend,Thanet District Council,17/11/2015,396736,954.16,,Sba Ltd,SBA001,Operational Services,Revenue,"Clothes, Uniforms & Laundry",Clothing
http://thanet.gov.uk/supplierspend,Thanet District Council,17/11/2015,396377,945,,Sellick Partnership Ltd,SEL011,Corporate Governance,Revenue,Services,Human Resources
http://thanet.gov.uk/supplierspend,Thanet District Council,17/11/2015,396378,1084.32,,Sellick Partnership Ltd,SEL011,Corporate Governance,Revenue,Services,Human Resources
http://thanet.gov.uk/supplierspend,Thanet District Council,17/11/2015,396379,927.36,,Sellick Partnership Ltd,SEL011,Corporate Governance,Revenue,Services,Human Resources
http://thanet.gov.uk/supplierspend,Thanet District Council,17/11/2015,396789,8718.49,,South East Adaptations Limited,SOU026,Corporate Resources and S151,Balance Sheet,Capital Exp-Non Council Assets,Grants
http://thanet.gov.uk/supplierspend,Thanet District Council,17/11/2015,396784,18110,,South East Building Company Limited,SEB001,Corporate Resources and S151,Balance Sheet,Capital Exp-Non Council Assets,Grants
http://thanet.gov.uk/supplierspend,Thanet District Council,17/11/2015,396785,6900,,South East Building Company Limited,SEB001,Corporate Resources and S151,Balance Sheet,Capital Exp-Non Council Assets,Grants
http://thanet.gov.uk/supplierspend,Thanet District Council,17/11/2015,396292,5.04,,Southern Electric,SEL007,Community Services,Revenue,Energy Costs,Utilities
http://thanet.gov.uk/supplierspend,Thanet District Council,17/11/2015,396292,523.61,,Southern Electric,SEL007,Operational Services,Revenue,Energy Costs,Utilities
http://thanet.gov.uk/supplierspend,Thanet District Council,17/11/2015,396301,218.08,,Southern Electric,SEL007,Operational Services,Revenue,Energy Costs,Utilities
http://thanet.gov.uk/supplierspend,Thanet District Council,17/11/2015,396306,291.1,,Southern Electric,SEL007,Operational Services,Revenue,Energy Costs,Utilities
http://thanet.gov.uk/supplierspend,Thanet District Council,17/11/2015,396307,237.74,,Southern Electric,SEL007,Operational Services,Revenue,Energy Costs,Utilities
http://thanet.gov.uk/supplierspend,Thanet District Council,17/11/2015,396674,461.33,,Southern Electric,SEL007,Operational Services,Revenue,Energy Costs,Utilities
http://thanet.gov.uk/supplierspend,Thanet District Council,17/11/2015,396462,2343.62,,Southern Water,SWA001,Operational Services,Revenue,Water Services,Utilities
http://thanet.gov.uk/supplierspend,Thanet District Council,17/11/2015,396465,549.66,,Southern Water,SWA001,Operational Services,Revenue,Water Services,Utilities
http://thanet.gov.uk/supplierspend,Thanet District Council,17/11/2015,396675,626.18,,Southern Water,SWA001,Operational Services,Revenue,Water Services,Utilities
http://thanet.gov.uk/supplierspend,Thanet District Council,17/11/2015,396676,289.79,,Southern Water,SWA001,Operational Services,Revenue,Water Services,Utilities
http://thanet.gov.uk/supplierspend,Thanet District Council,17/11/2015,396677,993.76,,Southern Water,SWA001,Operational Services,Revenue,Water Services,Utilities
http://thanet.gov.uk/supplierspend,Thanet District Council,17/11/2015,396678,2262.56,,Southern Water,SWA001,Operational Services,Revenue,Water Services,Utilities
http://thanet.gov.uk/supplierspend,Thanet District Council,17/11/2015,396817,431.64,,Southern Water,SWA001,Community Services,Revenue,Water Services,Utilities
http://thanet.gov.uk/supplierspend,Thanet District Council,17/11/2015,396219,300,,Spaldings  Ltd,SPA006,Operational Services,Revenue,"Repairs,  Alter & Mtce - Build",Horticultural
http://thanet.gov.uk/supplierspend,Thanet District Council,17/11/2015,394110,4250,,Spider Project Management Ltd,SPI009,Corporate Resources and S151,Balance Sheet,Investment Property For Lease,Consultancy
http://thanet.gov.uk/supplierspend,Thanet District Council,17/11/2015,396288,60,,Standfast Burglar Alarm Co (Ek) Ltd,STA003,Community Services,Revenue,"Equip, Furniture And Materials",Facilities And Mangement Serv
http://thanet.gov.uk/supplierspend,Thanet District Council,17/11/2015,396288,228.6,,Standfast Burglar Alarm Co (Ek) Ltd,STA003,Community Services,Revenue,"Repairs,  Alter & Mtce - Build",Facilities And Mangement Serv
http://thanet.gov.uk/supplierspend,Thanet District Council,17/11/2015,396147,2240,,Streetmaster (S.Wales) Limited,STR001,Operational Services,Revenue,"Equip, Furniture And Materials",Highway Equipment And Material
http://thanet.gov.uk/supplierspend,Thanet District Council,17/11/2015,396370,25160.79,,Swale Heating Ltd,SWA006,Corporate Resources and S151,Balance Sheet,Repairs And Mtce Holding A/C,Building Construction Material
http://thanet.gov.uk/supplierspend,Thanet District Council,17/11/2015,396375,529.5,,Swale Heating Ltd,SWA006,Corporate Resources and S151,Balance Sheet,Repairs And Mtce Holding A/C,Building Construction Material
http://thanet.gov.uk/supplierspend,Thanet District Council,17/11/2015,396652,790.97,,Swale Heating Ltd,SWA006,Corporate Resources and S151,Balance Sheet,Repairs And Mtce Holding A/C,Building Construction Material
http://thanet.gov.uk/supplierspend,Thanet District Council,17/11/2015,396914,2884.3,,Templars Estates Ltd,TEM005,Corporate Resources and S151,Balance Sheet,Capital Exp-Non Council Assets,Grants
http://thanet.gov.uk/supplierspend,Thanet District Council,17/11/2015,396915,272.16,,Templars Estates Ltd,TEM005,Corporate Resources and S151,Balance Sheet,Capital Exp-Non Council Assets,Grants
http://thanet.gov.uk/supplierspend,Thanet District Council,17/11/2015,396916,3243.04,,Templars Estates Ltd,TEM005,Corporate Resources and S151,Balance Sheet,Capital Exp-Non Council Assets,Grants
http://thanet.gov.uk/supplierspend,Thanet District Council,17/11/2015,396917,9233.61,,Templars Estates Ltd,TEM005,Corporate Resources and S151,Balance Sheet,Capital Exp-Non Council Assets,Grants
http://thanet.gov.uk/supplierspend,Thanet District Council,17/11/2015,396918,9430.34,,Templars Estates Ltd,TEM005,Corporate Resources and S151,Balance Sheet,Capital Exp-Non Council Assets,Grants
http://thanet.gov.uk/supplierspend,Thanet District Council,17/11/2015,396752,365,,Terberg Matec Uk Limited,TER010,Operational Services,Revenue,Training,Vehicle Management
http://thanet.gov.uk/supplierspend,Thanet District Council,17/11/2015,396490,4006.8,,Tfa Fuel Services Ltd,TFA003,Operational Services,Revenue,"Equip, Furniture And Materials",Utilities
http://thanet.gov.uk/supplierspend,Thanet District Council,17/11/2015,396838,19.84,,Tfa Fuel Services Ltd,TFA003,Operational Services,Revenue,Direct Transport Costs,Utilities
http://thanet.gov.uk/supplierspend,Thanet District Council,17/11/2015,396838,949.45,,Tfa Fuel Services Ltd,TFA003,Operational Services,Revenue,"Equip, Furniture And Materials",Utilities
http://thanet.gov.uk/supplierspend,Thanet District Council,17/11/2015,396683,642.6,,The Bell Brush Company,BEL018,Operational Services,Revenue,"Equip, Furniture And Materials",Cleaning And Janitorial
http://thanet.gov.uk/supplierspend,Thanet District Council,17/11/2015,396213,949.98,,The Glenwood Hotel,GLE007,Community Services,Revenue,Services,Housing Management
http://thanet.gov.uk/supplierspend,Thanet District Council,17/11/2015,396214,2937.49,,The Glenwood Hotel,GLE007,Community Services,Revenue,Services,Housing Management
http://thanet.gov.uk/supplierspend,Thanet District Council,17/11/2015,396276,2387.49,,The Glenwood Hotel,GLE007,Community Services,Revenue,Services,Housing Management
http://thanet.gov.uk/supplierspend,Thanet District Council,17/11/2015,396507,2445.82,,The Glenwood Hotel,GLE007,Community Services,Revenue,Services,Housing Management
http://thanet.gov.uk/supplierspend,Thanet District Council,17/11/2015,396906,1673,,Titan Lifts Ltd,TIT006,Corporate Resources and S151,Balance Sheet,Capital Exp-Non Council Assets,Facilities And Mangement Serv
http://thanet.gov.uk/supplierspend,Thanet District Council,17/11/2015,396696,4500,,Topps Seafood Bar,TOP006,Operational Services,Revenue,"Equip, Furniture And Materials",Facilities And Mangement Serv
http://thanet.gov.uk/supplierspend,Thanet District Council,17/11/2015,396230,262.71,,Total Supplies Ltd,TOT009,Corporate Resources and S151,Revenue,Cleaning & Domestic Supplies,Cleaning And Janitorial
http://thanet.gov.uk/supplierspend,Thanet District Council,17/11/2015,396905,6862,,Trueden Disability Adaptations Ltd,TRU012,Corporate Resources and S151,Balance Sheet,Capital Exp-Non Council Assets,Grants
http://thanet.gov.uk/supplierspend,Thanet District Council,17/11/2015,396657,242.01,,Veolia Es (Uk) Ltd,VEO001,Operational Services,Revenue,Cleaning & Domestic Supplies,Environmental Services
http://thanet.gov.uk/supplierspend,Thanet District Council,17/11/2015,396658,80.67,,Veolia Es (Uk) Ltd,VEO001,Corporate Resources and S151,Balance Sheet,Rechargeable Works,Environmental Services
http://thanet.gov.uk/supplierspend,Thanet District Council,17/11/2015,396658,1591.08,,Veolia Es (Uk) Ltd,VEO001,Operational Services,Revenue,Cleaning & Domestic Supplies,Environmental Services
http://thanet.gov.uk/supplierspend,Thanet District Council,17/11/2015,396514,80,,Viatec (Uk) Limited,VIA002,Operational Services,Revenue,"Equip, Furniture And Materials",Construction-Repair And Maint
http://thanet.gov.uk/supplierspend,Thanet District Council,17/11/2015,396514,1276,,Viatec (Uk) Limited,VIA002,Operational Services,Revenue,"Repairs,  Alter & Mtce - Build",Construction-Repair And Maint
http://thanet.gov.uk/supplierspend,Thanet District Council,17/11/2015,396453,269.28,,Viridor Waste Management Ltd,VIR003,Community Services,Revenue,Private Contractors,Environmental Services
http://thanet.gov.uk/supplierspend,Thanet District Council,17/11/2015,396499,575,,Wallace Print Limited,WAL034,Community Services,Revenue,Fixtures & Fittings,Facilities And Mangement Serv
http://thanet.gov.uk/supplierspend,Thanet District Council,17/11/2015,396116,492,,Westbury Industrial Supplies Ltd,WES042,Operational Services,Revenue,"Clothes, Uniforms & Laundry",Clothing
http://thanet.gov.uk/supplierspend,Thanet District Council,18/11/2015,397117,237004,,Kent & Medway Towns Fire Authority,KMT001,Corporate Resources and S151,Balance Sheet,Collection Fund - Preceptors,Various Cats-Public Sector
http://thanet.gov.uk/supplierspend,Thanet District Council,18/11/2015,397116,3663427,,Kent County Council,KCC022,Corporate Resources and S151,Balance Sheet,Collection Fund - Preceptors,Various Cats-Public Sector
http://thanet.gov.uk/supplierspend,Thanet District Council,18/11/2015,397119,495882,,Kent Police & Crime Commissioner,KPA003,Corporate Resources and S151,Balance Sheet,Collection Fund - Preceptors,Various Cats-Public Sector
http://thanet.gov.uk/supplierspend,Thanet District Council,19/11/2015,N/A,306.93,,REDACTED PERSONAL DATA,N/A,Operational Services,Revenue,Car Allowances,Non Trade Payee
http://thanet.gov.uk/supplierspend,Thanet District Council,19/11/2015,N/A,303.81,,REDACTED PERSONAL DATA,N/A,Operational Services,Revenue,Car Allowances,Non Trade Payee
http://thanet.gov.uk/supplierspend,Thanet District Council,19/11/2015,N/A,360.82,,REDACTED PERSONAL DATA,N/A,Operational Services,Revenue,Car Allowances,Non Trade Payee
http://thanet.gov.uk/supplierspend,Thanet District Council,19/11/2015,N/A,373.32,,REDACTED PERSONAL DATA,N/A,Operational Services,Revenue,Car Allowances,Non Trade Payee
http://thanet.gov.uk/supplierspend,Thanet District Council,19/11/2015,N/A,442.52,,REDACTED PERSONAL DATA,N/A,Operational Services,Revenue,Car Allowances,Non Trade Payee
http://thanet.gov.uk/supplierspend,Thanet District Council,19/11/2015,N/A,298.34,,REDACTED PERSONAL DATA,N/A,Operational Services,Revenue,Car Allowances,Non Trade Payee
http://thanet.gov.uk/supplierspend,Thanet District Council,19/11/2015,N/A,289.75,,REDACTED PERSONAL DATA,N/A,Community Services,Revenue,Car Allowances,Non Trade Payee
http://thanet.gov.uk/supplierspend,Thanet District Council,19/11/2015,N/A,513.12,,REDACTED PERSONAL DATA,N/A,Community Services,Revenue,Car Allowances,Non Trade Payee
http://thanet.gov.uk/supplierspend,Thanet District Council,19/11/2015,N/A,318.65,,REDACTED PERSONAL DATA,N/A,Community Services,Revenue,Car Allowances,Non Trade Payee
http://thanet.gov.uk/supplierspend,Thanet District Council,19/11/2015,N/A,506.09,,REDACTED PERSONAL DATA,N/A,Community Services,Revenue,Car Allowances,Non Trade Payee
http://thanet.gov.uk/supplierspend,Thanet District Council,19/11/2015,N/A,3689.94,,REDACTED PERSONAL DATA,N/A,Corporate Governance,Revenue,Relocation Expenses,Non Trade Payee
http://thanet.gov.uk/supplierspend,Thanet District Council,19/11/2015,N/A,297.56,,REDACTED PERSONAL DATA,N/A,East Kent Shared Services,Revenue,Car Allowances,Non Trade Payee
http://thanet.gov.uk/supplierspend,Thanet District Council,19/11/2015,N/A,432.76,,REDACTED PERSONAL DATA,N/A,East Kent Shared Services,Revenue,Car Allowances,Non Trade Payee
http://thanet.gov.uk/supplierspend,Thanet District Council,19/11/2015,N/A,403.78,,REDACTED PERSONAL DATA,N/A,East Kent Shared Services,Revenue,Car Allowances,Non Trade Payee
http://thanet.gov.uk/supplierspend,Thanet District Council,19/11/2015,N/A,39.99,,REDACTED PERSONAL DATA,N/A,East Kent Shared Services,Revenue,"Equip, Furniture And Materials",Non Trade Payee
http://thanet.gov.uk/supplierspend,Thanet District Council,19/11/2015,N/A,259.29,,REDACTED PERSONAL DATA,N/A,East Kent Shared Services,Revenue,Car Allowances,Non Trade Payee
http://thanet.gov.uk/supplierspend,Thanet District Council,19/11/2015,N/A,361.6,,REDACTED PERSONAL DATA,N/A,East Kent Shared Services,Revenue,Car Allowances,Non Trade Payee
http://thanet.gov.uk/supplierspend,Thanet District Council,19/11/2015,N/A,539.56,,REDACTED PERSONAL DATA,N/A,Corporate Governance,Revenue,Car Allowances,Non Trade Payee
http://thanet.gov.uk/supplierspend,Thanet District Council,20/11/2015,397106,1303.61,,Kent County Council (Kcs),KCC003,Operational Services,Revenue,Energy Costs,Facilities And Mangement Serv
http://thanet.gov.uk/supplierspend,Thanet District Council,20/11/2015,397107,1068.5,,Kent County Council (Kcs),KCC003,Operational Services,Revenue,Energy Costs,Facilities And Mangement Serv
http://thanet.gov.uk/supplierspend,Thanet District Council,20/11/2015,397108,1238.33,,Kent County Council (Kcs),KCC003,Operational Services,Revenue,Energy Costs,Facilities And Mangement Serv
http://thanet.gov.uk/supplierspend,Thanet District Council,20/11/2015,397109,1810.16,,Kent County Council (Kcs),KCC003,Operational Services,Revenue,Energy Costs,Facilities And Mangement Serv
http://thanet.gov.uk/supplierspend,Thanet District Council,20/11/2015,395924,2000,,Mr Jonathan Chambers,CHA041,Operational Services,Revenue,Services,Legal Services
http://thanet.gov.uk/supplierspend,Thanet District Council,20/11/2015,395864,129819.45,,Steadline Ltd,STE017,Operational Services,Revenue,"Repairs,  Alter & Mtce - Build",Construction-Repair And Maint
http://thanet.gov.uk/supplierspend,Thanet District Council,20/11/2015,395464,57973.27,,Wgh Ltd,WGH001,Corporate Resources and S151,Balance Sheet,Other Land And Buildings-Hra,Consultancy
http://thanet.gov.uk/supplierspend,Thanet District Council,20/11/2015,397188,9843,,Wyg Management Services Limited,WYG003,Corporate Resources and S151,Revenue,Training,Consultancy
http://thanet.gov.uk/supplierspend,Thanet District Council,25/11/2015,397134,650,,A W Warner & Sons Ltd,WAR006,Operational Services,Revenue,"Equip, Furniture And Materials",Horticultural
http://thanet.gov.uk/supplierspend,Thanet District Council,25/11/2015,397330,589.78,,Adecco Uk Ltd,ADE005,Chief Executive,Revenue,Agency Staff,Human Resources
http://thanet.gov.uk/supplierspend,Thanet District Council,25/11/2015,396887,10026.3,,Adelante Software Limited,ADE002,Corporate Resources and S151,Revenue,Communications & Computing,ICT
http://thanet.gov.uk/supplierspend,Thanet District Council,25/11/2015,397150,512.2,,Air-Seal Products Ltd,AIR018,Operational Services,Revenue,Direct Transport Costs,Vehicle Management
http://thanet.gov.uk/supplierspend,Thanet District Council,25/11/2015,397121,3894.21,,Albion Fencing&Construction Kent Ltd,ALB005,Community Services,Revenue,"Repairs,  Alter & Mtce - Build",Building Construction Material
http://thanet.gov.uk/supplierspend,Thanet District Council,25/11/2015,397162,1100,,Amber Driver Training,AMB004,Operational Services,Revenue,Training,Human Resources
http://thanet.gov.uk/supplierspend,Thanet District Council,25/11/2015,396839,15,,Amenity Horticultural Serv Ltd,AME001,Operational Services,Revenue,"Equip, Furniture And Materials",Horticultural
http://thanet.gov.uk/supplierspend,Thanet District Council,25/11/2015,396839,590,,Amenity Horticultural Serv Ltd,AME001,Operational Services,Revenue,"Repairs,  Alter & Mtce - Build",Horticultural
http://thanet.gov.uk/supplierspend,Thanet District Council,25/11/2015,397218,237,,Bag Of Salt,BAG002,Operational Services,Revenue,"Repairs,  Alter & Mtce - Build",Maritime Services
http://thanet.gov.uk/supplierspend,Thanet District Council,25/11/2015,397241,9354.53,,Bpi Recycled Products,BPI002,Operational Services,Revenue,"Equip, Furniture And Materials",Environmental Services
http://thanet.gov.uk/supplierspend,Thanet District Council,25/11/2015,397310,595,,Bridge Security Cctv Ltd,BRI039,Community Services,Revenue,Services,Facilities And Mangement Serv
http://thanet.gov.uk/supplierspend,Thanet District Council,25/11/2015,396436,4550,,Cameron Consulting (Uk) Limited,CAM022,Corporate Resources and S151,Balance Sheet,Repairs And Mtce Holding A/C,Consultancy
http://thanet.gov.uk/supplierspend,Thanet District Council,25/11/2015,396385,1942.46,,Canon (Uk) Ltd,CAN021,Community Services,Revenue,"Equip, Furniture And Materials",Facilities And Mangement Serv
http://thanet.gov.uk/supplierspend,Thanet District Council,25/11/2015,396386,2111.36,,Canon (Uk) Ltd,CAN021,Community Services,Revenue,"Equip, Furniture And Materials",Facilities And Mangement Serv
http://thanet.gov.uk/supplierspend,Thanet District Council,25/11/2015,397362,2075.72,,Canon (Uk) Ltd,CAN021,Community Services,Revenue,"Equip, Furniture And Materials",Facilities And Mangement Serv
http://thanet.gov.uk/supplierspend,Thanet District Council,25/11/2015,397131,240855,,Canterbury City Council,CAN004,Corporate Resources and S151,Balance Sheet,Capital Exp-Non Council Assets,Various Cats-Public Sector
http://thanet.gov.uk/supplierspend,Thanet District Council,25/11/2015,397090,227.5,,Channel Commercials Plc,CCO001,Operational Services,Revenue,Direct Transport Costs,Vehicle Management
http://thanet.gov.uk/supplierspend,Thanet District Council,25/11/2015,397364,321.9,,Channel Commercials Plc,CCO001,Operational Services,Revenue,Direct Transport Costs,Vehicle Management
http://thanet.gov.uk/supplierspend,Thanet District Council,25/11/2015,397366,329.18,,Channel Commercials Plc,CCO001,Operational Services,Revenue,Direct Transport Costs,Vehicle Management
http://thanet.gov.uk/supplierspend,Thanet District Council,25/11/2015,396501,2018.6,,Cobalt Telephone Technologies Ltd,COB002,Operational Services,Revenue,Services,ICT
http://thanet.gov.uk/supplierspend,Thanet District Council,25/11/2015,397101,700,,Connaught Hotel Dover Limited,CON046,Community Services,Revenue,Services,Housing Management
http://thanet.gov.uk/supplierspend,Thanet District Council,25/11/2015,395960,2288,,Dawsonrentals Sweepers,DAW003,Operational Services,Revenue,Cont Hire & Operating Lease,Vehicle Management
http://thanet.gov.uk/supplierspend,Thanet District Council,25/11/2015,396208,15241.33,,Dcb (Kent) Ltd,DCB001,Corporate Resources and S151,Balance Sheet,Repairs And Mtce Holding A/C,Construction-Repair And Maint
http://thanet.gov.uk/supplierspend,Thanet District Council,25/11/2015,396209,73928.24,,Dcb (Kent) Ltd,DCB001,Corporate Resources and S151,Balance Sheet,Repairs And Mtce Holding A/C,Construction-Repair And Maint
http://thanet.gov.uk/supplierspend,Thanet District Council,25/11/2015,396210,4798.35,,Dcb (Kent) Ltd,DCB001,Corporate Resources and S151,Balance Sheet,Repairs And Mtce Holding A/C,Construction-Repair And Maint
http://thanet.gov.uk/supplierspend,Thanet District Council,25/11/2015,396211,2656.5,,Dcb (Kent) Ltd,DCB001,Corporate Resources and S151,Balance Sheet,Repairs And Mtce Holding A/C,Construction-Repair And Maint
http://thanet.gov.uk/supplierspend,Thanet District Council,25/11/2015,396212,1564.15,,Dcb (Kent) Ltd,DCB001,Corporate Resources and S151,Balance Sheet,Repairs And Mtce Holding A/C,Construction-Repair And Maint
http://thanet.gov.uk/supplierspend,Thanet District Council,25/11/2015,397110,262.09,,Dennis Eagle Ltd,DEN005,Operational Services,Revenue,Direct Transport Costs,Vehicle Management
http://thanet.gov.uk/supplierspend,Thanet District Council,25/11/2015,397111,262.09,,Dennis Eagle Ltd,DEN005,Operational Services,Revenue,Direct Transport Costs,Vehicle Management
http://thanet.gov.uk/supplierspend,Thanet District Council,25/11/2015,397112,436.96,,Dennis Eagle Ltd,DEN005,Operational Services,Revenue,Direct Transport Costs,Vehicle Management
http://thanet.gov.uk/supplierspend,Thanet District Council,25/11/2015,397113,710.34,,Dennis Eagle Ltd,DEN005,Operational Services,Revenue,Direct Transport Costs,Vehicle Management
http://thanet.gov.uk/supplierspend,Thanet District Council,25/11/2015,397114,514.08,,Dennis Eagle Ltd,DEN005,Operational Services,Revenue,Direct Transport Costs,Vehicle Management
http://thanet.gov.uk/supplierspend,Thanet District Council,25/11/2015,397195,4300,,Dolphin Lifts Kent,DOL003,Corporate Resources and S151,Balance Sheet,Capital Exp-Non Council Assets,Grants
http://thanet.gov.uk/supplierspend,Thanet District Council,25/11/2015,396867,754.72,,Dover District Council,DOV001,East Kent Shared Services,Revenue,Employee Related Schemes,Various Cats-Public Sector
http://thanet.gov.uk/supplierspend,Thanet District Council,25/11/2015,396358,1575,,Dr Alexander Marshall,MAR100,Operational Services,Revenue,Services,Cemetery And Crematorium
http://thanet.gov.uk/supplierspend,Thanet District Council,25/11/2015,396710,344.74,,E Saunders Margate Ltd,SAU001,Operational Services,Revenue,"Repairs,  Alter & Mtce - Build",Construction-Repair And Maint
http://thanet.gov.uk/supplierspend,Thanet District Council,25/11/2015,396354,328.8,,Eagle Envelopes Ltd,EAG001,East Kent Shared Services,Revenue,"Print, Stat And Gen Off Exps",Stationery
http://thanet.gov.uk/supplierspend,Thanet District Council,25/11/2015,397443,1546.16,,Electoral Reform Services,ELE010,Corporate Governance,Revenue,"Print, Stat And Gen Off Exps",Facilities And Mangement Serv
http://thanet.gov.uk/supplierspend,Thanet District Council,25/11/2015,397194,745.36,,Family Mosaic Housing,FAM001,Corporate Resources and S151,Balance Sheet,Capital Exp-Non Council Assets,Housing Management
http://thanet.gov.uk/supplierspend,Thanet District Council,25/11/2015,397196,472,,Family Mosaic Housing,FAM001,Corporate Resources and S151,Balance Sheet,Capital Exp-Non Council Assets,Housing Management
http://thanet.gov.uk/supplierspend,Thanet District Council,25/11/2015,397447,684.4,,Family Mosaic Housing,FAM001,Corporate Resources and S151,Balance Sheet,Capital Exp-Non Council Assets,Housing Management
http://thanet.gov.uk/supplierspend,Thanet District Council,25/11/2015,397449,775.99,,Family Mosaic Housing,FAM001,Corporate Resources and S151,Balance Sheet,Capital Exp-Non Council Assets,Housing Management
http://thanet.gov.uk/supplierspend,Thanet District Council,25/11/2015,397453,1000.12,,Family Mosaic Housing,FAM001,Corporate Resources and S151,Balance Sheet,Capital Exp-Non Council Assets,Housing Management
http://thanet.gov.uk/supplierspend,Thanet District Council,25/11/2015,397455,766.6,,Family Mosaic Housing,FAM001,Corporate Resources and S151,Balance Sheet,Capital Exp-Non Council Assets,Housing Management
http://thanet.gov.uk/supplierspend,Thanet District Council,25/11/2015,397115,294.04,,G & G Forklifts,GGF001,Operational Services,Revenue,"Equip, Furniture And Materials",Vehicle Management
http://thanet.gov.uk/supplierspend,Thanet District Council,25/11/2015,397307,2855,,Gerlack & Thorne Ltd,GER001,Community Services,Revenue,"Repairs,  Alter & Mtce - Build",Construction-Repair And Maint
http://thanet.gov.uk/supplierspend,Thanet District Council,25/11/2015,396158,7884,,Gl Hearn Limited,GLH001,Community Services,Revenue,Services,Consultancy
http://thanet.gov.uk/supplierspend,Thanet District Council,25/11/2015,397191,700,,Gordon Road Area Street Scheme,GOR003,Community Services,Revenue,Grants & Subscriptions,Grants
http://thanet.gov.uk/supplierspend,Thanet District Council,25/11/2015,397311,250,,Great West Autos Ltd,GRE008,Operational Services,Revenue,"Repairs,  Alter & Mtce - Build",Vehicle Management
http://thanet.gov.uk/supplierspend,Thanet District Council,25/11/2015,397099,770,,Gulliver'S Truck Hire Limited,GUL001,Operational Services,Revenue,Cont Hire & Operating Lease,Vehicle Management
http://thanet.gov.uk/supplierspend,Thanet District Council,25/11/2015,396779,550.43,,Hands On Suppliers Ltd,HAN007,Operational Services,Revenue,"Equip, Furniture And Materials",Clothing
http://thanet.gov.uk/supplierspend,Thanet District Council,25/11/2015,397266,730,,Holt & Wotton Ltd,HOL001,Corporate Resources and S151,Balance Sheet,Repairs And Mtce Holding A/C,Building Construction Material
http://thanet.gov.uk/supplierspend,Thanet District Council,25/11/2015,397325,3800,,Holt & Wotton Ltd,HOL001,Corporate Resources and S151,Balance Sheet,Repairs And Mtce Holding A/C,Building Construction Material
http://thanet.gov.uk/supplierspend,Thanet District Council,25/11/2015,396504,6944.67,,Hr Go Recruitment Ltd,HRG002,Operational Services,Revenue,Agency Staff,Human Resources
http://thanet.gov.uk/supplierspend,Thanet District Council,25/11/2015,396660,11072.78,,Hr Go Recruitment Ltd,HRG002,Operational Services,Revenue,Agency Staff,Human Resources
http://thanet.gov.uk/supplierspend,Thanet District Council,25/11/2015,397333,359.72,,Hr Go Recruitment Ltd,HRG002,Operational Services,Revenue,Agency Staff,Human Resources
http://thanet.gov.uk/supplierspend,Thanet District Council,25/11/2015,397334,321,,Hr Go Recruitment Ltd,HRG002,Operational Services,Revenue,Agency Staff,Human Resources
http://thanet.gov.uk/supplierspend,Thanet District Council,25/11/2015,397336,953.21,,Hr Go Recruitment Ltd,HRG002,Operational Services,Revenue,Agency Staff,Human Resources
http://thanet.gov.uk/supplierspend,Thanet District Council,25/11/2015,397337,1472.32,,Hr Go Recruitment Ltd,HRG002,Operational Services,Revenue,Agency Staff,Human Resources
http://thanet.gov.uk/supplierspend,Thanet District Council,25/11/2015,397450,6466.56,,Hubbard & Houghton Construction Ltd,HUB003,Corporate Resources and S151,Balance Sheet,Capital Exp-Non Council Assets,Construction-Repair And Maint
http://thanet.gov.uk/supplierspend,Thanet District Council,25/11/2015,396850,492,,Hutton Design Associates Limited,HUT002,Community Services,Revenue,"Print, Stat And Gen Off Exps",Facilities And Mangement Serv
http://thanet.gov.uk/supplierspend,Thanet District Council,25/11/2015,397327,330,,Irrv,IRR002,East Kent Shared Services,Revenue,Expenses,Human Resources
http://thanet.gov.uk/supplierspend,Thanet District Council,25/11/2015,396828,1975.53,,J Rospo Building Contractors,ROS001,Corporate Resources and S151,Balance Sheet,Other Land And Buildings-Hra,Construction-Repair And Maint
http://thanet.gov.uk/supplierspend,Thanet District Council,25/11/2015,397452,478.5,,John Gale,GAL001,Corporate Resources and S151,Balance Sheet,Capital Exp-Non Council Assets,Grants
http://thanet.gov.uk/supplierspend,Thanet District Council,25/11/2015,396391,360,,Kan-Doo Timber Supplies Ltd,KAN002,Operational Services,Revenue,"Equip, Furniture And Materials",Building Construction Material
http://thanet.gov.uk/supplierspend,Thanet District Council,25/11/2015,396888,3486,,Kent County Council,KCC002,Community Services,Revenue,Services,Various Cats-Public Sector
http://thanet.gov.uk/supplierspend,Thanet District Council,25/11/2015,396753,431.86,,Kent County Council (Kcs),KCC003,Operational Services,Revenue,"Repairs,  Alter & Mtce - Build",Facilities And Mangement Serv
http://thanet.gov.uk/supplierspend,Thanet District Council,25/11/2015,397235,26560.44,,Kent County Council (Kcs),KCC003,Operational Services,Revenue,Direct Transport Costs,Facilities And Mangement Serv
http://thanet.gov.uk/supplierspend,Thanet District Council,25/11/2015,397236,31103.03,,Kent County Council (Kcs),KCC003,Operational Services,Revenue,Direct Transport Costs,Facilities And Mangement Serv
http://thanet.gov.uk/supplierspend,Thanet District Council,25/11/2015,396487,12743.35,,Kingdom Security Limited,KIN039,Operational Services,Revenue,Services,Street And Traffic Management
http://thanet.gov.uk/supplierspend,Thanet District Council,25/11/2015,397454,8301,,Kings Home Improvements,KIN023,Corporate Resources and S151,Balance Sheet,Capital Exp-Non Council Assets,Grants
http://thanet.gov.uk/supplierspend,Thanet District Council,25/11/2015,397317,307.65,,L W Burt & Son Ltd,BUR027,Community Services,Revenue,"Repairs,  Alter & Mtce - Build",Construction-Repair And Maint
http://thanet.gov.uk/supplierspend,Thanet District Council,25/11/2015,397318,454.71,,L W Burt & Son Ltd,BUR027,Community Services,Revenue,"Repairs,  Alter & Mtce - Build",Construction-Repair And Maint
http://thanet.gov.uk/supplierspend,Thanet District Council,25/11/2015,397319,552.7,,L W Burt & Son Ltd,BUR027,Community Services,Revenue,"Repairs,  Alter & Mtce - Build",Construction-Repair And Maint
http://thanet.gov.uk/supplierspend,Thanet District Council,25/11/2015,397096,340,,Leanne Bain,BAI007,Community Services,Revenue,Services,Arts And Leisure Services
http://thanet.gov.uk/supplierspend,Thanet District Council,25/11/2015,397445,300,,Learn2bfit Foundation,LEA027,Community Services,Revenue,Grants & Subscriptions,Grants
http://thanet.gov.uk/supplierspend,Thanet District Council,25/11/2015,396803,328.49,,Lister Wilder Limited,LIS002,Operational Services,Revenue,"Equip, Furniture And Materials",Horticultural
http://thanet.gov.uk/supplierspend,Thanet District Council,25/11/2015,397225,4318.87,,Lobster Van Hire Ltd,LOB001,Operational Services,Revenue,Cont Hire & Operating Lease,Vehicle Management
http://thanet.gov.uk/supplierspend,Thanet District Council,25/11/2015,397213,411.1,,Lyreco Uk Limited,LYR001,Community Services,Revenue,"Print, Stat And Gen Off Exps",Stationery
http://thanet.gov.uk/supplierspend,Thanet District Council,25/11/2015,396804,300,,Maxwells Grounds Maintenance Ltd,MAX002,Operational Services,Revenue,"Repairs,  Alter & Mtce - Build",Construction-Repair And Maint
http://thanet.gov.uk/supplierspend,Thanet District Council,25/11/2015,397363,6000.05,,M-E Engineers Ltd,MEE001,Corporate Resources and S151,Balance Sheet,Investment Property For Lease,Consultancy
http://thanet.gov.uk/supplierspend,Thanet District Council,25/11/2015,396491,1449.75,,Med Clean South Ltd,MED015,Operational Services,Revenue,"Repairs,  Alter & Mtce - Build",Cleaning And Janitorial
http://thanet.gov.uk/supplierspend,Thanet District Council,25/11/2015,397222,4035.35,,Med Clean South Ltd,MED015,Operational Services,Revenue,Cleaning & Domestic Supplies,Cleaning And Janitorial
http://thanet.gov.uk/supplierspend,Thanet District Council,25/11/2015,396825,845,,Midland Software Limited,MID013,East Kent Shared Services,Revenue,Services,ICT
http://thanet.gov.uk/supplierspend,Thanet District Council,25/11/2015,397324,7140,,Milmer Consulting Limited,MIL046,Operational Services,Revenue,Services,Environmental Services
http://thanet.gov.uk/supplierspend,Thanet District Council,25/11/2015,396383,329.12,,Morgan Jones Ltd,MOR001,Corporate Resources and S151,Revenue,Agency Staff,Human Resources
http://thanet.gov.uk/supplierspend,Thanet District Council,25/11/2015,396761,546.04,,Morgan Jones Ltd,MOR001,Corporate Resources and S151,Revenue,Agency Staff,Human Resources
http://thanet.gov.uk/supplierspend,Thanet District Council,25/11/2015,396424,350,,Mr Philip Woolfe,WOO030,Operational Services,Revenue,Services,Legal Services
http://thanet.gov.uk/supplierspend,Thanet District Council,25/11/2015,397358,516.4,,Neopost Ltd,NEO003,Community Services,Revenue,Communications & Computing,Mail Services
http://thanet.gov.uk/supplierspend,Thanet District Council,25/11/2015,397160,1753.8,,Northgate Public Services (Uk) Ltd,NOR018,East Kent Shared Services,Revenue,Communications & Computing,ICT
http://thanet.gov.uk/supplierspend,Thanet District Council,25/11/2015,397098,550,,Ntm-Gb Limited,NTM001,Operational Services,Revenue,Training,Vehicle Management
http://thanet.gov.uk/supplierspend,Thanet District Council,25/11/2015,397372,420.78,,Ocs Group Uk Ltd T/A Fountains,OCS005,Operational Services,Revenue,Fixtures & Fittings,Cleaning And Janitorial
http://thanet.gov.uk/supplierspend,Thanet District Council,25/11/2015,397373,442.13,,Ocs Group Uk Ltd T/A Fountains,OCS005,Operational Services,Revenue,Fixtures & Fittings,Cleaning And Janitorial
http://thanet.gov.uk/supplierspend,Thanet District Council,25/11/2015,397374,18056.74,,Ocs Group Uk Ltd T/A Fountains,OCS005,Operational Services,Revenue,Cleaning & Domestic Supplies,Cleaning And Janitorial
http://thanet.gov.uk/supplierspend,Thanet District Council,25/11/2015,397377,254.46,,Ocs Group Uk Ltd T/A Fountains,OCS005,Operational Services,Revenue,Fixtures & Fittings,Cleaning And Janitorial
http://thanet.gov.uk/supplierspend,Thanet District Council,25/11/2015,396866,7781.72,,Oracle Corporation Uk Ltd,ORA001,East Kent Shared Services,Revenue,Communications & Computing,ICT
http://thanet.gov.uk/supplierspend,Thanet District Council,25/11/2015,396923,300,,P G Platforms Limited,PGP001,Operational Services,Revenue,"Equip, Furniture And Materials",Construction-Repair And Maint
http://thanet.gov.uk/supplierspend,Thanet District Council,25/11/2015,397151,1710.8,,Palmstead Nurseries Ltd,PAL015,Operational Services,Revenue,"Repairs,  Alter & Mtce - Build",Horticultural
http://thanet.gov.uk/supplierspend,Thanet District Council,25/11/2015,396768,261.44,,Paul Nunn Limited,NUN002,Operational Services,Revenue,Direct Transport Costs,Vehicle Management
http://thanet.gov.uk/supplierspend,Thanet District Council,25/11/2015,397356,730,,Powell & Co Property Limited,POW020,Community Services,Revenue,Grants & Subscriptions,Housing Management
http://thanet.gov.uk/supplierspend,Thanet District Council,25/11/2015,396389,282.78,,Ppg Arch Coatings Uk Ltd,PPG001,Community Services,Revenue,"Repairs,  Alter & Mtce - Build",Building Construction Material
http://thanet.gov.uk/supplierspend,Thanet District Council,25/11/2015,396389,150.78,,Ppg Arch Coatings Uk Ltd,PPG001,Operational Services,Revenue,"Equip, Furniture And Materials",Building Construction Material
http://thanet.gov.uk/supplierspend,Thanet District Council,25/11/2015,397245,209.34,,Premier Paper Group Limited,PRE035,Community Services,Revenue,"Print, Stat And Gen Off Exps",Stationery
http://thanet.gov.uk/supplierspend,Thanet District Council,25/11/2015,396767,229.08,,Probrand Ltd,PRO012,Corporate Resources and S151,Revenue,"Equip, Furniture And Materials",ICT
http://thanet.gov.uk/supplierspend,Thanet District Council,25/11/2015,397215,385,,R Cannon,CAN007,Operational Services,Revenue,Services,Maritime Services
http://thanet.gov.uk/supplierspend,Thanet District Council,25/11/2015,396781,3600,,Red Zebra Community Solutions,RED022,Community Services,Revenue,Grants & Subscriptions,Special Community Care
http://thanet.gov.uk/supplierspend,Thanet District Council,25/11/2015,397444,300,,REDACTED PERSONAL DATA,N/A,Community Services,Revenue,Grants & Subscriptions,Grants
http://thanet.gov.uk/supplierspend,Thanet District Council,25/11/2015,396922,950,,Redactive Publishing Limited,RED020,Community Services,Revenue,Advertising Expenses,Facilities And Mangement Serv
http://thanet.gov.uk/supplierspend,Thanet District Council,25/11/2015,396794,792,,Reed Specialist Recruitment Ltd,REE015,East Kent Shared Services,Revenue,Agency Staff,Human Resources
http://thanet.gov.uk/supplierspend,Thanet District Council,25/11/2015,396891,1320,,Reed Specialist Recruitment Ltd,REE015,East Kent Shared Services,Revenue,Agency Staff,Human Resources
http://thanet.gov.uk/supplierspend,Thanet District Council,25/11/2015,396857,720,,Rigby Taylor Ltd,RIG002,Operational Services,Revenue,"Repairs,  Alter & Mtce - Build",Horticultural
http://thanet.gov.uk/supplierspend,Thanet District Council,25/11/2015,397321,1150,,S Pattison,PAT007,Operational Services,Revenue,"Repairs,  Alter & Mtce - Build",Building Construction Material
http://thanet.gov.uk/supplierspend,Thanet District Council,25/11/2015,396770,800,,Sarah Shepherd,SHE022,Community Services,Revenue,"Print, Stat And Gen Off Exps",Facilities And Mangement Serv
http://thanet.gov.uk/supplierspend,Thanet District Council,25/11/2015,397093,450,,Socitm Limited,SOC001,East Kent Shared Services,Revenue,Grants & Subscriptions,Financial Services
http://thanet.gov.uk/supplierspend,Thanet District Council,25/11/2015,395806,6921,,Solarwinds Software Europe Limited,SOL016,East Kent Shared Services,Revenue,Communications & Computing,ICT
http://thanet.gov.uk/supplierspend,Thanet District Council,25/11/2015,397165,-2184,,Solarwinds Software Europe Limited,SOL016,East Kent Shared Services,Revenue,Communications & Computing,ICT
http://thanet.gov.uk/supplierspend,Thanet District Council,25/11/2015,397439,2184,,Solarwinds Software Europe Limited,SOL016,East Kent Shared Services,Revenue,Communications & Computing,ICT
http://thanet.gov.uk/supplierspend,Thanet District Council,25/11/2015,397193,6178,,South East Building Company Limited,SEB001,Corporate Resources and S151,Balance Sheet,Capital Exp-Non Council Assets,Grants
http://thanet.gov.uk/supplierspend,Thanet District Council,25/11/2015,397448,5670,,South East Building Company Limited,SEB001,Corporate Resources and S151,Balance Sheet,Capital Exp-Non Council Assets,Grants
http://thanet.gov.uk/supplierspend,Thanet District Council,25/11/2015,397451,4785,,South East Building Company Limited,SEB001,Corporate Resources and S151,Balance Sheet,Capital Exp-Non Council Assets,Grants
http://thanet.gov.uk/supplierspend,Thanet District Council,25/11/2015,397456,1153.18,,South East Building Company Limited,SEB001,Corporate Resources and S151,Balance Sheet,Capital Exp-Non Council Assets,Grants
http://thanet.gov.uk/supplierspend,Thanet District Council,25/11/2015,397170,80551.61,,Standage & Co Limited,STA058,Corporate Resources and S151,Balance Sheet,Council Dwellings,Construction-Repair And Maint
http://thanet.gov.uk/supplierspend,Thanet District Council,25/11/2015,397171,29156.97,,Standage & Co Limited,STA058,Corporate Resources and S151,Balance Sheet,Council Dwellings,Construction-Repair And Maint
http://thanet.gov.uk/supplierspend,Thanet District Council,25/11/2015,397343,241.55,,Tfa Fuel Services Ltd,TFA003,Operational Services,Revenue,"Equip, Furniture And Materials",Utilities
http://thanet.gov.uk/supplierspend,Thanet District Council,25/11/2015,397192,1000,,Thanet Fairtrade Initiative,TFI001,Community Services,Revenue,Grants & Subscriptions,Non Trade Payee
http://thanet.gov.uk/supplierspend,Thanet District Council,25/11/2015,397272,459.9,,Thanet Waste Services Ltd,TWA001,Operational Services,Revenue,Private Contractors,Environmental Services
http://thanet.gov.uk/supplierspend,Thanet District Council,25/11/2015,397118,2958.32,,The Glenwood Hotel,GLE007,Community Services,Revenue,Services,Housing Management
http://thanet.gov.uk/supplierspend,Thanet District Council,25/11/2015,397120,1295.82,,The Glenwood Hotel,GLE007,Community Services,Revenue,Services,Housing Management
http://thanet.gov.uk/supplierspend,Thanet District Council,25/11/2015,397237,1395.82,,The Glenwood Hotel,GLE007,Community Services,Revenue,Services,Housing Management
http://thanet.gov.uk/supplierspend,Thanet District Council,25/11/2015,396697,823.5,,Vps Security Ltd,VPS001,Community Services,Revenue,Services,Facilities And Mangement Serv
http://thanet.gov.uk/supplierspend,Thanet District Council,25/11/2015,396851,250,,W Brazil & Bros,BRA001,Operational Services,Revenue,"Repairs,  Alter & Mtce - Build",Environmental Services
http://thanet.gov.uk/supplierspend,Thanet District Council,25/11/2015,396852,2020,,W Brazil & Bros,BRA001,Operational Services,Revenue,Grounds Mtce Costs,Environmental Services
http://thanet.gov.uk/supplierspend,Thanet District Council,25/11/2015,396853,1030,,W Brazil & Bros,BRA001,Operational Services,Revenue,Grounds Mtce Costs,Environmental Services
http://thanet.gov.uk/supplierspend,Thanet District Council,25/11/2015,397140,375,,W Brazil & Bros,BRA001,Corporate Resources and S151,Balance Sheet,Repairs And Mtce Holding A/C,Environmental Services
http://thanet.gov.uk/supplierspend,Thanet District Council,25/11/2015,397143,850,,W Brazil & Bros,BRA001,Corporate Resources and S151,Balance Sheet,Repairs And Mtce Holding A/C,Environmental Services
http://thanet.gov.uk/supplierspend,Thanet District Council,25/11/2015,397146,240,,W Brazil & Bros,BRA001,Corporate Resources and S151,Balance Sheet,Repairs And Mtce Holding A/C,Environmental Services
http://thanet.gov.uk/supplierspend,Thanet District Council,25/11/2015,397242,411.04,,Wasteparts Uk Ltd,WAS006,Operational Services,Revenue,Direct Transport Costs,Vehicle Management
http://thanet.gov.uk/supplierspend,Thanet District Council,25/11/2015,397345,220,,Watling Tyre Service Ltd,WAT003,Operational Services,Revenue,"Repairs,  Alter & Mtce - Build",Vehicle Management
http://thanet.gov.uk/supplierspend,Thanet District Council,25/11/2015,395052,490,,Wealden Rehab,WEA007,Corporate Resources and S151,Balance Sheet,Repairs And Mtce Holding A/C,Building Construction Material
http://thanet.gov.uk/supplierspend,Thanet District Council,25/11/2015,397086,412.5,,Wealden Rehab Ltd,WEA009,Corporate Resources and S151,Balance Sheet,Repairs And Mtce Holding A/C,Building Construction Material
http://thanet.gov.uk/supplierspend,Thanet District Council,26/11/2015,395708,222.19,,Allstar Business Solutions Ltd,ALL038,Operational Services,Revenue,Direct Transport Costs,Vehicle Management
http://thanet.gov.uk/supplierspend,Thanet District Council,26/11/2015,395923,372.42,,Allstar Business Solutions Ltd,ALL038,Operational Services,Revenue,Direct Transport Costs,Vehicle Management
http://thanet.gov.uk/supplierspend,Thanet District Council,26/11/2015,397674,482.41,,Allstar Business Solutions Ltd,ALL038,Operational Services,Revenue,Direct Transport Costs,Vehicle Management
http://thanet.gov.uk/supplierspend,Thanet District Council,26/11/2015,397675,375.96,,Allstar Business Solutions Ltd,ALL038,Operational Services,Revenue,Direct Transport Costs,Vehicle Management
http://thanet.gov.uk/supplierspend,Thanet District Council,26/11/2015,PC7635,79,,Amazon Prime,N/A,Corporate Resources and S151,Balance Sheet,Current Assets,Stationery
http://thanet.gov.uk/supplierspend,Thanet District Council,26/11/2015,PC7623,13.99,2.33,Amazon Svcs Europe,N/A,East Kent Shared Services,Revenue,Supplies And Services,Stationery
http://thanet.gov.uk/supplierspend,Thanet District Council,26/11/2015,PC7624,4.49,0.75,Amazon Svcs Europe,N/A,East Kent Shared Services,Revenue,Supplies And Services,Stationery
http://thanet.gov.uk/supplierspend,Thanet District Council,26/11/2015,PC7494,84.93,,Amazon UK Marketplace,N/A,Community Services,Revenue,Supplies And Services,Stationery
http://thanet.gov.uk/supplierspend,Thanet District Council,26/11/2015,PC7533,14.15,,Amazon UK Marketplace,N/A,East Kent Shared Services,Revenue,Supplies And Services,Stationery
http://thanet.gov.uk/supplierspend,Thanet District Council,26/11/2015,PC7542,126.73,21.13,Amazon UK Marketplace,N/A,East Kent Shared Services,Revenue,Supplies And Services,Stationery
http://thanet.gov.uk/supplierspend,Thanet District Council,26/11/2015,PC7566,11.63,,Amazon Uk Marketplace,N/A,East Kent Shared Services,Revenue,Supplies And Services,Stationery
http://thanet.gov.uk/supplierspend,Thanet District Council,26/11/2015,PC7589,27.07,,Amazon Uk Marketplace,N/A,Chief Executive,Revenue,Supplies And Services,Stationery
http://thanet.gov.uk/supplierspend,Thanet District Council,26/11/2015,PC7602,19.82,,Amazon UK Marketplace,N/A,East Kent Shared Services,Revenue,Supplies And Services,Stationery
http://thanet.gov.uk/supplierspend,Thanet District Council,26/11/2015,PC7603,20.55,,Amazon UK Marketplace,N/A,East Kent Shared Services,Revenue,Supplies And Services,Stationery
http://thanet.gov.uk/supplierspend,Thanet District Council,26/11/2015,PC7604,10.82,,Amazon UK Marketplace,N/A,East Kent Shared Services,Revenue,Supplies And Services,Stationery
http://thanet.gov.uk/supplierspend,Thanet District Council,26/11/2015,PC7559,26.07,4.35,Amazon UK Retail,N/A,East Kent Shared Services,Revenue,Supplies And Services,Stationery
http://thanet.gov.uk/supplierspend,Thanet District Council,26/11/2015,PC7568,21.44,3.58,Argos,N/A,Operational Services,Revenue,Supplies And Services,Facilities And Management Serv
http://thanet.gov.uk/supplierspend,Thanet District Council,26/11/2015,PC7608,24.99,4.17,Argos,N/A,East Kent Shared Services,Revenue,Supplies And Services,Facilities And Management Serv
http://thanet.gov.uk/supplierspend,Thanet District Council,26/11/2015,PC7512,29.16,,Argos Retail Group,N/A,Operational Services,Revenue,Premises Related Expenditure,Domestic Goods
http://thanet.gov.uk/supplierspend,Thanet District Council,26/11/2015,PC7588,5,,Asda,N/A,Community Services,Revenue,Premises Related Expenditure,Catering
http://thanet.gov.uk/supplierspend,Thanet District Council,26/11/2015,PC7514,35.98,,Booker Limited,N/A,Chief Executive,Revenue,Supplies And Services,Catering
http://thanet.gov.uk/supplierspend,Thanet District Council,26/11/2015,PC7562,13.98,,Booker Limited,N/A,Chief Executive,Revenue,Supplies And Services,Catering
http://thanet.gov.uk/supplierspend,Thanet District Council,26/11/2015,PC7563,55.28,,Booker Limited,N/A,Operational Services,Revenue,Supplies And Services,Catering
http://thanet.gov.uk/supplierspend,Thanet District Council,26/11/2015,PC7564,6.22,,Booker Limited,N/A,Community Services,Revenue,Supplies And Services,Catering
http://thanet.gov.uk/supplierspend,Thanet District Council,26/11/2015,PC7582,3.19,,Booker Limited,N/A,Operational Services,Revenue,Supplies And Services,Catering
http://thanet.gov.uk/supplierspend,Thanet District Council,26/11/2015,PC7583,3.19,,Booker Limited,N/A,Operational Services,Revenue,Supplies And Services,Catering
http://thanet.gov.uk/supplierspend,Thanet District Council,26/11/2015,PC7592,13.47,,Booker Limited,N/A,Community Services,Revenue,Supplies And Services,Catering
http://thanet.gov.uk/supplierspend,Thanet District Council,26/11/2015,PC7593,16.5,,Booker Limited,N/A,Chief Executive,Revenue,Supplies And Services,Catering
http://thanet.gov.uk/supplierspend,Thanet District Council,26/11/2015,PC7626,52.73,,Booker Ltd,N/A,Community Services,Revenue,Supplies And Services,Catering
http://thanet.gov.uk/supplierspend,Thanet District Council,26/11/2015,PC7627,32.99,,Booker Ltd,N/A,Community Services,Revenue,Supplies And Services,Catering
http://thanet.gov.uk/supplierspend,Thanet District Council,26/11/2015,PC7539,8.58,,Brewers,N/A,Community Services,Revenue,Supplies And Services,Building Construction Material
http://thanet.gov.uk/supplierspend,Thanet District Council,26/11/2015,PC7460,272,,Brooks Forgings,N/A,Operational Services,Revenue,Supplies And Services,Building Construction Material
http://thanet.gov.uk/supplierspend,Thanet District Council,26/11/2015,PC7558,566.27,,Cartridgesave.Co.Uk,N/A,Operational Services,Revenue,Supplies And Services,Stationery
http://thanet.gov.uk/supplierspend,Thanet District Council,26/11/2015,PC7600,130,,CIPD Membership Renewal,N/A,East Kent Shared Services,Revenue,Supplies And Services,Human Resources
http://thanet.gov.uk/supplierspend,Thanet District Council,26/11/2015,PC7511,86.5,,City Electrical Factors,N/A,Community Services,Revenue,Supplies And Services,Building Construction Material
http://thanet.gov.uk/supplierspend,Thanet District Council,26/11/2015,397676,1332.96,,Co-Operative Bank Paypoint,COO018,Corporate Resources and S151,Revenue,Services,Financial Services
http://thanet.gov.uk/supplierspend,Thanet District Council,26/11/2015,397676,444.32,,Co-Operative Bank Paypoint,COO018,Community Services,Revenue,Services,Financial Services
http://thanet.gov.uk/supplierspend,Thanet District Council,26/11/2015,PC7488,227.5,,DVLA,N/A,Operational Services,Revenue,Transport Related Expenditure,Various Cats - Public Sector
http://thanet.gov.uk/supplierspend,Thanet District Council,26/11/2015,PC7489,227.5,,DVLA,N/A,Operational Services,Revenue,Transport Related Expenditure,Various Cats - Public Sector
http://thanet.gov.uk/supplierspend,Thanet District Council,26/11/2015,PC7490,227.5,,DVLA,N/A,Operational Services,Revenue,Transport Related Expenditure,Various Cats - Public Sector
http://thanet.gov.uk/supplierspend,Thanet District Council,26/11/2015,PC7530,227.5,,DVLA,N/A,Operational Services,Revenue,Transport Related Expenditure,Various Cats - Public Sector
http://thanet.gov.uk/supplierspend,Thanet District Council,26/11/2015,PC7547,227.5,,DVLA,N/A,Operational Services,Revenue,Transport Related Expenditure,Various Cats - Public Sector
http://thanet.gov.uk/supplierspend,Thanet District Council,26/11/2015,PC7548,227.5,,DVLA,N/A,Operational Services,Revenue,Transport Related Expenditure,Various Cats - Public Sector
http://thanet.gov.uk/supplierspend,Thanet District Council,26/11/2015,PC7549,227.5,,DVLA,N/A,Operational Services,Revenue,Transport Related Expenditure,Various Cats - Public Sector
http://thanet.gov.uk/supplierspend,Thanet District Council,26/11/2015,PC7550,227.5,,DVLA,N/A,Operational Services,Revenue,Transport Related Expenditure,Various Cats - Public Sector
http://thanet.gov.uk/supplierspend,Thanet District Council,26/11/2015,PC7551,227.5,,DVLA,N/A,Operational Services,Revenue,Transport Related Expenditure,Various Cats - Public Sector
http://thanet.gov.uk/supplierspend,Thanet District Council,26/11/2015,PC7581,47.5,,ESC Europe,N/A,East Kent Shared Services,Revenue,Supplies And Services,Stationery
http://thanet.gov.uk/supplierspend,Thanet District Council,26/11/2015,PC7544,125,,F J Rogers,N/A,Community Services,Revenue,Supplies And Services,Facilities And Management Serv
http://thanet.gov.uk/supplierspend,Thanet District Council,26/11/2015,PC7553,40.08,,Facebook,N/A,Corporate Resources and S151,Revenue,Supplies And Services,Facilities And Management Serv
http://thanet.gov.uk/supplierspend,Thanet District Council,26/11/2015,PC7554,38.01,,Facebook,N/A,Corporate Resources and S151,Revenue,Supplies And Services,Facilities And Management Serv
http://thanet.gov.uk/supplierspend,Thanet District Council,26/11/2015,PC7555,5.78,,Facebook,N/A,Community Services,Revenue,Supplies And Services,Facilities And Management Serv
http://thanet.gov.uk/supplierspend,Thanet District Council,26/11/2015,PC7421,22,3.67,Fifty Plus,N/A,Community Services,Revenue,Supplies And Services,Clothing
http://thanet.gov.uk/supplierspend,Thanet District Council,26/11/2015,PC7636,3.5,0.59,Fifty Plus,N/A,Community Services,Revenue,Supplies And Services,Clothing
http://thanet.gov.uk/supplierspend,Thanet District Council,26/11/2015,PC7557,74.65,,Flower Bulbs,N/A,Operational Services,Revenue,Supplies And Services,Horticultural
http://thanet.gov.uk/supplierspend,Thanet District Council,26/11/2015,PC7501,191.54,,Flybe,N/A,East Kent Shared Services,Revenue,Supplies And Services,Human Resources
http://thanet.gov.uk/supplierspend,Thanet District Council,26/11/2015,PC7528,11,,Greggs,N/A,Community Services,Revenue,Supplies And Services,Catering
http://thanet.gov.uk/supplierspend,Thanet District Council,26/11/2015,PC7616,38,,GWR Bristol,N/A,Operational Services,Revenue,Transport Related Expenditure,Human Resources
http://thanet.gov.uk/supplierspend,Thanet District Council,26/11/2015,PC7486,225,,Haymarket Publishing Services Ltd,N/A,Community Services,Revenue,Supplies And Services,Facilities And Management Serv
http://thanet.gov.uk/supplierspend,Thanet District Council,26/11/2015,PC7462,225,,HM Courts,N/A,East Kent Shared Services,Revenue,Supplies And Services,Various Cats - Public Sector
http://thanet.gov.uk/supplierspend,Thanet District Council,26/11/2015,PC7463,225,,HM Courts,N/A,East Kent Shared Services,Revenue,Supplies And Services,Various Cats - Public Sector
http://thanet.gov.uk/supplierspend,Thanet District Council,26/11/2015,PC7464,245,,HM Courts,N/A,East Kent Shared Services,Revenue,Supplies And Services,Various Cats - Public Sector
http://thanet.gov.uk/supplierspend,Thanet District Council,26/11/2015,PC7465,51,,HM Courts,N/A,East Kent Shared Services,Revenue,Supplies And Services,Various Cats - Public Sector
http://thanet.gov.uk/supplierspend,Thanet District Council,26/11/2015,PC7466,69,,HM Courts,N/A,East Kent Shared Services,Revenue,Supplies And Services,Various Cats - Public Sector
http://thanet.gov.uk/supplierspend,Thanet District Council,26/11/2015,PC7572,300,,HM Courts,N/A,East Kent Shared Services,Revenue,Supplies And Services,Various Cats - Public Sector
http://thanet.gov.uk/supplierspend,Thanet District Council,26/11/2015,PC7573,150,,HM Courts,N/A,East Kent Shared Services,Revenue,Supplies And Services,Various Cats - Public Sector
http://thanet.gov.uk/supplierspend,Thanet District Council,26/11/2015,PC7586,45,,HM Courts,N/A,East Kent Shared Services,Revenue,Supplies And Services,Various Cats - Public Sector
http://thanet.gov.uk/supplierspend,Thanet District Council,26/11/2015,PC7587,48,,HM Courts,N/A,East Kent Shared Services,Revenue,Supplies And Services,Various Cats - Public Sector
http://thanet.gov.uk/supplierspend,Thanet District Council,26/11/2015,PC7395,103.33,,Holiday Inn  Leicester,N/A,Corporate Resources and S151,Revenue,Employees,Human Resources
http://thanet.gov.uk/supplierspend,Thanet District Council,26/11/2015,PC7596,120,,Kent Car Parts,N/A,Operational Services,Revenue,Supplies And Services,Environmental Services
http://thanet.gov.uk/supplierspend,Thanet District Council,26/11/2015,PC7518,12.2,,London & South Eastern,N/A,Community Services,Revenue,Supplies And Services,Human Resources
http://thanet.gov.uk/supplierspend,Thanet District Council,26/11/2015,PC7543,12.2,,London & South Eastern,N/A,Operational Services,Revenue,Transport Related Expenditure,Human Resources
http://thanet.gov.uk/supplierspend,Thanet District Council,26/11/2015,PC7609,11.9,,London & South Eastern,N/A,Chief Executive,Revenue,Transport Related Expenditure,Human Resources
http://thanet.gov.uk/supplierspend,Thanet District Council,26/11/2015,PC7504,54.71,,London City Airport,N/A,East Kent Shared Services,Revenue,Supplies And Services,Human Resources
http://thanet.gov.uk/supplierspend,Thanet District Council,26/11/2015,397667,247535.28,,Maidstone Borough Council,MAI002,Corporate Resources and S151,Balance Sheet,Collection Fund,Various Cats-Public Sector
http://thanet.gov.uk/supplierspend,Thanet District Council,26/11/2015,397667,684398.4,,Maidstone Borough Council,MAI002,Corporate Resources and S151,Balance Sheet,Revenue Financing,Various Cats-Public Sector
http://thanet.gov.uk/supplierspend,Thanet District Council,26/11/2015,PC7552,97.45,,Medisave,N/A,Operational Services,Revenue,Supplies And Services,Environmental Services
http://thanet.gov.uk/supplierspend,Thanet District Council,26/11/2015,PC7621,346.17,,More Ryadom,N/A,East Kent Shared Services,Revenue,Transport Related Expenditure,Human Resources
http://thanet.gov.uk/supplierspend,Thanet District Council,26/11/2015,397677,268.71,,Nat West Bank,NWE001,Corporate Resources and S151,Revenue,Services,Various Categories
http://thanet.gov.uk/supplierspend,Thanet District Council,26/11/2015,PC7536,104,,Panel Warehouse,N/A,Community Services,Revenue,Supplies And Services,Facilities And Management Serv
http://thanet.gov.uk/supplierspend,Thanet District Council,26/11/2015,PC7585,28.7,,Paperstone,N/A,Community Services,Revenue,Supplies And Services,Facilities And Management Serv
http://thanet.gov.uk/supplierspend,Thanet District Council,26/11/2015,PC7516,250,,Possession Claims Online,N/A,Community Services,Revenue,Supplies And Services,Various Cats - Public Sector
http://thanet.gov.uk/supplierspend,Thanet District Council,26/11/2015,PC7517,250,,Possession Claims Online,N/A,Community Services,Revenue,Supplies And Services,Various Cats - Public Sector
http://thanet.gov.uk/supplierspend,Thanet District Council,26/11/2015,PC7521,250,,Possession Claims Online,N/A,Community Services,Revenue,Supplies And Services,Various Cats - Public Sector
http://thanet.gov.uk/supplierspend,Thanet District Council,26/11/2015,PC7522,250,,Possession Claims Online,N/A,Community Services,Revenue,Supplies And Services,Various Cats - Public Sector
http://thanet.gov.uk/supplierspend,Thanet District Council,26/11/2015,PC7523,250,,Possession Claims Online,N/A,Community Services,Revenue,Supplies And Services,Various Cats - Public Sector
http://thanet.gov.uk/supplierspend,Thanet District Council,26/11/2015,PC7524,250,,Possession Claims Online,N/A,Community Services,Revenue,Supplies And Services,Various Cats - Public Sector
http://thanet.gov.uk/supplierspend,Thanet District Council,26/11/2015,PC7525,250,,Possession Claims Online,N/A,Community Services,Revenue,Supplies And Services,Various Cats - Public Sector
http://thanet.gov.uk/supplierspend,Thanet District Council,26/11/2015,PC7531,110,,Possession Claims Online,N/A,Community Services,Revenue,Supplies And Services,Various Cats - Public Sector
http://thanet.gov.uk/supplierspend,Thanet District Council,26/11/2015,PC7532,250,,Possession Claims Online,N/A,Community Services,Revenue,Supplies And Services,Various Cats - Public Sector
http://thanet.gov.uk/supplierspend,Thanet District Council,26/11/2015,PC7591,110,,Possession Claims Online,N/A,Community Services,Revenue,Supplies And Services,Various Cats - Public Sector
http://thanet.gov.uk/supplierspend,Thanet District Council,26/11/2015,PC7545,92.42,,Primrose,N/A,Operational Services,Revenue,Supplies And Services,Clothing
http://thanet.gov.uk/supplierspend,Thanet District Council,26/11/2015,PC7546,54.14,,Primrose,N/A,Operational Services,Revenue,Supplies And Services,Clothing
http://thanet.gov.uk/supplierspend,Thanet District Council,26/11/2015,PC7590,36,6,Proconferences.Com,N/A,Community Services,Revenue,Supplies And Services,Human Resources
http://thanet.gov.uk/supplierspend,Thanet District Council,26/11/2015,PC7622,10.18,1.7,Sainsburys,N/A,East Kent Shared Services,Revenue,Supplies And Services,Catering
http://thanet.gov.uk/supplierspend,Thanet District Council,26/11/2015,397672,583.01,,Santander,SAN017,Community Services,Revenue,Services,Various Categories
http://thanet.gov.uk/supplierspend,Thanet District Council,26/11/2015,397672,1749.01,,Santander,SAN017,Corporate Resources and S151,Revenue,Services,Various Categories
http://thanet.gov.uk/supplierspend,Thanet District Council,26/11/2015,397673,881.66,,Santander,SAN017,Corporate Resources and S151,Revenue,Services,Various Categories
http://thanet.gov.uk/supplierspend,Thanet District Council,26/11/2015,PC7493,133.33,,Screwfix Direct,N/A,Community Services,Revenue,Supplies And Services,Building Construction Material
http://thanet.gov.uk/supplierspend,Thanet District Council,26/11/2015,PC7570,34.99,5.84,Screwfix Direct,N/A,Operational Services,Revenue,Supplies And Services,Building Construction Material
http://thanet.gov.uk/supplierspend,Thanet District Council,26/11/2015,397719,-219956,,Secretary Of State,SEC003,Corporate Resources and S151,Revenue,Revenue Financing,Government Agencies
http://thanet.gov.uk/supplierspend,Thanet District Council,26/11/2015,397719,1185738,,Secretary Of State,SEC003,Corporate Resources and S151,Balance Sheet,Collection Fund,Government Agencies
http://thanet.gov.uk/supplierspend,Thanet District Council,26/11/2015,PC7560,80,,Sefton Council,N/A,Operational Services,Revenue,Supplies And Services,Human Resources
http://thanet.gov.uk/supplierspend,Thanet District Council,26/11/2015,PC7601,610.23,,Servertek Ltd,N/A,East Kent Shared Services,Revenue,Supplies And Services,ICT
http://thanet.gov.uk/supplierspend,Thanet District Council,26/11/2015,PC7575,144,,Services For Tourism,N/A,Community Services,Revenue,Supplies And Services,Human Resources
http://thanet.gov.uk/supplierspend,Thanet District Council,26/11/2015,PC7577,31.77,,Shell Royal Oak (Site 580),N/A,Operational Services,Revenue,Supplies And Services,Vehicle Management
http://thanet.gov.uk/supplierspend,Thanet District Council,26/11/2015,PC7513,139,,Shutterstock,N/A,Corporate Resources and S151,Revenue,Supplies And Services,Facilities And Management Serv
http://thanet.gov.uk/supplierspend,Thanet District Council,26/11/2015,PC7571,176,,Solan Sunbeds (Domestic) Warrington,N/A,Operational Services,Revenue,Supplies And Services,Facilities And Management Serv
http://thanet.gov.uk/supplierspend,Thanet District Council,26/11/2015,PC7569,4.2,0.7,Standfast,N/A,Operational Services,Revenue,Supplies And Services,Facilities And Management Serv
http://thanet.gov.uk/supplierspend,Thanet District Council,26/11/2015,PC7534,275,,Streetgames,N/A,Community Services,Revenue,Supplies And Services,Human Resources
http://thanet.gov.uk/supplierspend,Thanet District Council,26/11/2015,PC7487,17.39,2.9,Tesco,N/A,Operational Services,Revenue,Supplies And Services,Catering
http://thanet.gov.uk/supplierspend,Thanet District Council,26/11/2015,PC7629,106,17.67,Tesco ,N/A,Chief Executive,Revenue,Supplies And Services,Catering
http://thanet.gov.uk/supplierspend,Thanet District Council,26/11/2015,PC7630,106,17.67,Tesco ,N/A,Chief Executive,Revenue,Supplies And Services,Catering
http://thanet.gov.uk/supplierspend,Thanet District Council,26/11/2015,PC7509,110,,Thanet County Court,N/A,East Kent Shared Services,Revenue,Supplies And Services,Various Cats - Public Sector
http://thanet.gov.uk/supplierspend,Thanet District Council,26/11/2015,PC7578,110,,Thanet County Court,N/A,Community Services,Revenue,Supplies And Services,Various Cats - Public Sector
http://thanet.gov.uk/supplierspend,Thanet District Council,26/11/2015,PC7579,110,,Thanet County Court,N/A,Community Services,Revenue,Supplies And Services,Various Cats - Public Sector
http://thanet.gov.uk/supplierspend,Thanet District Council,26/11/2015,PC7580,110,,Thanet County Court,N/A,Community Services,Revenue,Supplies And Services,Various Cats - Public Sector
http://thanet.gov.uk/supplierspend,Thanet District Council,26/11/2015,PC7599,170,,Thanet County Court,N/A,Operational Services,Revenue,Supplies And Services,Various Cats - Public Sector
http://thanet.gov.uk/supplierspend,Thanet District Council,26/11/2015,PC7612,79.17,,The Grand Hotel,N/A,Operational Services,Revenue,Supplies And Services,Human Resources
http://thanet.gov.uk/supplierspend,Thanet District Council,26/11/2015,PC7556,87.89,14.65,The Lighting Store,N/A,Community Services,Revenue,Premises Related Expenditure,Building Construction Material
http://thanet.gov.uk/supplierspend,Thanet District Council,26/11/2015,PC7467,4.58,,Timpson Ltd,N/A,Community Services,Revenue,Supplies And Services,Facilities And Management Serv
http://thanet.gov.uk/supplierspend,Thanet District Council,26/11/2015,PC7515,7.7,,Toolstation,N/A,Community Services,Revenue,Supplies And Services,Building Construction Material
http://thanet.gov.uk/supplierspend,Thanet District Council,26/11/2015,PC7561,12.96,,Toolstation,N/A,Community Services,Revenue,Premises Related Expenditure,Building Construction Material
http://thanet.gov.uk/supplierspend,Thanet District Council,26/11/2015,PC7567,11.5,,Transport For London,N/A,Chief Executive,Revenue,Transport Related Expenditure,Human Resources
http://thanet.gov.uk/supplierspend,Thanet District Council,26/11/2015,PC7538,39.17,,Travelodge,N/A,Community Services,Revenue,Supplies And Services,Human Resources
http://thanet.gov.uk/supplierspend,Thanet District Council,26/11/2015,PC7541,11,,Tunbridge Wells Registry Office,N/A,East Kent Shared Services,Revenue,Supplies And Services,Various Cats - Public Sector
http://thanet.gov.uk/supplierspend,Thanet District Council,26/11/2015,PC7576,10,1.67,Turner Contemporary,N/A,Community Services,Revenue,Supplies And Services,Arts & Leisure
http://thanet.gov.uk/supplierspend,Thanet District Council,26/11/2015,PC7497,145.5,,TV Licensing,N/A,Operational Services,Revenue,Supplies And Services,Various Cats - Public Sector
http://thanet.gov.uk/supplierspend,Thanet District Council,26/11/2015,PC7527,145.5,,TV Licensing,N/A,Community Services,Revenue,Supplies And Services,Various Cats - Public Sector
http://thanet.gov.uk/supplierspend,Thanet District Council,26/11/2015,PC7492,69,,Virgin Trains,N/A,Operational Services,Revenue,Transport Related Expenditure,Human Resources
http://thanet.gov.uk/supplierspend,Thanet District Council,26/11/2015,PC7537,148,,Virgin Trains,N/A,East Kent Shared Services,Revenue,Transport Related Expenditure,Human Resources
http://thanet.gov.uk/supplierspend,Thanet District Council,26/11/2015,PC7540,50,,Virgin Trains,N/A,East Kent Shared Services,Revenue,Transport Related Expenditure,Human Resources
http://thanet.gov.uk/supplierspend,Thanet District Council,26/11/2015,PC7605,46.6,,Virgin Trains,N/A,East Kent Shared Services,Revenue,Transport Related Expenditure,Human Resources
http://thanet.gov.uk/supplierspend,Thanet District Council,26/11/2015,PC7606,67.4,,Virgin Trains,N/A,Corporate Resources and S151,Revenue,Transport Related Expenditure,Human Resources
http://thanet.gov.uk/supplierspend,Thanet District Council,26/11/2015,PC7594,87.5,,Walpole Bay Hotel,N/A,Community Services,Revenue,Premises Related Expenditure,Human Resources
http://thanet.gov.uk/supplierspend,Thanet District Council,26/11/2015,PC7485,37.3,,Webtis,N/A,Operational Services,Revenue,Transport Related Expenditure,Human Resources
http://thanet.gov.uk/supplierspend,Thanet District Council,26/11/2015,PC7519,61.4,,Webtis,N/A,Community Services,Revenue,Transport Related Expenditure,Human Resources
http://thanet.gov.uk/supplierspend,Thanet District Council,26/11/2015,PC7520,190.5,,Webtis,N/A,Corporate Governance,Revenue,Transport Related Expenditure,Human Resources
http://thanet.gov.uk/supplierspend,Thanet District Council,26/11/2015,PC7526,14.2,,Webtis,N/A,Community Services,Revenue,Transport Related Expenditure,Human Resources
http://thanet.gov.uk/supplierspend,Thanet District Council,26/11/2015,PC7529,51.6,,Webtis,N/A,East Kent Shared Services,Revenue,Transport Related Expenditure,Human Resources
http://thanet.gov.uk/supplierspend,Thanet District Council,26/11/2015,PC7565,128.9,,Webtis,N/A,Community Services,Revenue,Transport Related Expenditure,Human Resources
http://thanet.gov.uk/supplierspend,Thanet District Council,26/11/2015,PC7584,5.5,,Webtis,N/A,Community Services,Revenue,Transport Related Expenditure,Human Resources
http://thanet.gov.uk/supplierspend,Thanet District Council,26/11/2015,PC7597,39.7,,Webtis,N/A,Community Services,Revenue,Transport Related Expenditure,Human Resources
http://thanet.gov.uk/supplierspend,Thanet District Council,26/11/2015,PC7598,39.7,,Webtis,N/A,Community Services,Revenue,Transport Related Expenditure,Human Resources
http://thanet.gov.uk/supplierspend,Thanet District Council,26/11/2015,PC7506,11.25,,Wilko Retail Ltd,N/A,Community Services,Revenue,Supplies And Services,Facilities And Management Serv
http://thanet.gov.uk/supplierspend,Thanet District Council,26/11/2015,397681,1995.65,,Worldpay Ltd,WOR008,Corporate Resources and S151,Revenue,Services,Financial Services
http://thanet.gov.uk/supplierspend,Thanet District Council,26/11/2015,397682,2446.02,,Worldpay Ltd,WOR008,Corporate Resources and S151,Revenue,Services,Financial Services
http://thanet.gov.uk/supplierspend,Thanet District Council,27/11/2015,397728,818.5,,Beckwith Consulting Limited,BEC001,Corporate Resources and S151,Revenue,Training,Human Resources
http://thanet.gov.uk/supplierspend,Thanet District Council,27/11/2015,397426,770,,Gulliver'S Truck Hire Limited,GUL001,Operational Services,Revenue,Cont Hire & Operating Lease,Vehicle Management
http://thanet.gov.uk/supplierspend,Thanet District Council,27/11/2015,397427,770,,Gulliver'S Truck Hire Limited,GUL001,Operational Services,Revenue,Cont Hire & Operating Lease,Vehicle Management
http://thanet.gov.uk/supplierspend,Thanet District Council,27/11/2015,397446,-770,,Gulliver'S Truck Hire Limited,GUL001,Operational Services,Revenue,Cont Hire & Operating Lease,Vehicle Management
http://thanet.gov.uk/supplierspend,Thanet District Council,27/11/2015,396484,808.5,,Hr Go Recruitment Ltd,HRG002,Operational Services,Revenue,Agency Staff,Human Resources
http://thanet.gov.uk/supplierspend,Thanet District Council,27/11/2015,389285,1973.4,,Midland Software Limited,MID013,Corporate Resources and S151,Balance Sheet,Plant And Equipment,ICT
http://thanet.gov.uk/supplierspend,Thanet District Council,27/11/2015,396155,2170.65,,Midland Software Limited,MID013,Corporate Resources and S151,Balance Sheet,Plant And Equipment,ICT
http://thanet.gov.uk/supplierspend,Thanet District Council,27/11/2015,396157,375,,Midland Software Limited,MID013,Corporate Resources and S151,Balance Sheet,Plant And Equipment,ICT
http://thanet.gov.uk/supplierspend,Thanet District Council,27/11/2015,396823,2080.42,,Midland Software Limited,MID013,Corporate Resources and S151,Balance Sheet,Plant And Equipment,ICT
http://thanet.gov.uk/supplierspend,Thanet District Council,27/11/2015,396824,464.5,,Midland Software Limited,MID013,Corporate Resources and S151,Balance Sheet,Plant And Equipment,ICT
http://thanet.gov.uk/supplierspend,Thanet District Council,27/11/2015,396826,1080.13,,Midland Software Limited,MID013,Corporate Resources and S151,Balance Sheet,Plant And Equipment,ICT
http://thanet.gov.uk/supplierspend,Thanet District Council,27/11/2015,396827,-564.5,,Midland Software Limited,MID013,Corporate Resources and S151,Balance Sheet,Plant And Equipment,ICT
http://thanet.gov.uk/supplierspend,Thanet District Council,27/11/2015,397610,396.74,,Southern Water,SWA001,Operational Services,Revenue,Water Services,Utilities
http://thanet.gov.uk/supplierspend,Thanet District Council,30/11/2015,397752,3000.03,,M-E Engineers Ltd,MEE001,Corporate Resources and S151,Balance Sheet,Investment Property For Lease,Consultancy
http://thanet.gov.uk/supplierspend,Thanet District Council,30/11/2015,397753,3000.02,,M-E Engineers Ltd,MEE001,Corporate Resources and S151,Balance Sheet,Investment Property For Lease,Consultancy
http://thanet.gov.uk/supplierspend,Thanet District Council,30/11/2015,397837,196428.57,,Public Works Loan Board,PWL001,Corporate Resources and S151,Balance Sheet,Borrowing Repayable>1 Yr,Investments And Loans
http://thanet.gov.uk/supplierspend,Thanet District Council,30/11/2015,397837,26405.54,,Public Works Loan Board,PWL001,Corporate Resources and S151,Balance Sheet,Debit Interest And Expenses,Investments And Loans
http://thanet.gov.uk/supplierspend,Thanet District Council,30/11/2015,397836,500000,,REDACTED COMMERCIAL COMMERCIALITY,N/A,Corporate Resources and S151,Balance Sheet,Other Land And Buildings-Hra,Various Categories
http://thanet.gov.uk/supplierspend,Thanet District Council,30/11/2015,397836,450000,,REDACTED COMMERCIAL COMMERCIALITY,N/A,Community Services,Revenue,Other Transfer Payments,Various Categories
